{"text_format":"1","workbook":"xlsx","n_sheets":23,"sheets":["Inledn.","Ducbestyckning del1","Ducbestyckning del2","Gruppschema","Blad1","Blad2","Blad3","Blad4","Blad21","Blad22","Blad101","Blad102","Blad103","Blad104","Blad105","Blad106","Blad107","Blad108","Blad109","Blad201","Blad202","Blad203","Blad204"],"not_rendered":{"charts":0,"images":42,"macros":0,"external_links":0,"defined_names":6,"comments":0,"pivot_tables":0},"unopened":[],"bounds":{"document_bytes":16777216,"sheet_cells":100000,"rows_first":2000,"rows_last":500,"rows_between":2000,"halvings":0,"cell_chars":16384,"cell_head_chars":4096},"cells_cut":0,"cells_raw":0,"read":"whole","date_system":"1900"}

{"sheet":"Inledn.","index":0,"n_rows":79,"n_cols":21,"rows_kept":79,"cut":false,"hidden":false,"merged":[]}
["P3 & P3E1 & P3E2 Standard Plåtskåp "]
["med XE16-Com + E16 + E16 + 4 EXTRA RDO"]
[]
["Objekt","Namn","R","B"]
["RELATION/BYGGHANDLING","RELATIONSHANDLING/BYGGHANDLING","x",null,null,null,{"$f":"CONCATENATE(J5,K5)","v":"RELATIONSHANDLING"},null,null,{"$f":"IF(C5>0,\"RELATIONSHANDLING\",\"\")","v":"RELATIONSHANDLING"},{"$f":"IF(D5>0,\"BYGGHANDLING\",\"\")","v":""}]
["Apparatskåpsbeteckning"]
["Placering el. betjäning",null,null,null,null,null,null,null,null,null,null,null,null,null,null,null,null,null,null,null,"OBS! "]
["Anläggningsnamn",null,null,null,null,null,null,null,null,null,null,null,null,null,null,null,null,null,null,null,"Fyll i all information i de vita rutorna till vänster."]
["Stad",null,null,null,null,null,null,null,null,null,null,null,null,null,null,null,null,null,null,null,"Befintlig text, beteckningar och kabelnummer är endast förslag."]
["Datum",null,null,null,null,null,null,null,null,null,null,null,null,null,null,null,null,null,null,null,"Printa sedan ut alla sidor."]
["Arbetsnummer = projektnr.","20-101",null,null,null,null,null,null,null,null,null,null,null,null,null,null,null,null,null,null,"I rutorna \"Typ(DI,Pl,AI)\" skrivs aktuell styrsignal in med ett X, dvs om det är digital, analog eller pulsingång."]
[]
["Referens"]
["Revidering av","SN "]
[]
[null,null,null,null,null,"Kabelnummer"]
["Inkommande matning",null,null,null,null,"INK"]
["Säkring S1","MANÖVER 230 VAC"]
["Säkring S2","MATNING 1",null,null,null,1]
["Säkring S3","MATNING 2",null,null,null,2]
["Säkring S4","MATNING 3",null,null,null,3]
["Säkring S5","MATNING 4",null,null,null,4]
[null,null,"DI","AI","PI"]
["Universal ingång 1","Reserv UI 1",null,null,null,301,{"$f":"CONCATENATE(H24,I24,J24)","v":""},{"$f":"IF(C24>0,\" (Digital ingång)\",\"\")","v":""},{"$f":"IF(D24>0,\" (Analog ingång)\",\"\")","v":""},{"$f":"IF(E24>0,\" (Pulsingång)\",\"\")","v":""}]
["Universal ingång 2","Reserv UI 2",null,null,null,302,{"$f":"CONCATENATE(H25,I25,J25)","v":""},{"$f":"IF(C25>0,\" (Digital ingång)\",\"\")","v":""},{"$f":"IF(D25>0,\" (Analog ingång)\",\"\")","v":""},{"$f":"IF(E25>0,\" (Pulsingång)\",\"\")","v":""}]
["Universal ingång 3","Reserv UI 3",null,null,null,303,"","","",""]
["Universal ingång 4","Reserv UI 4",null,null,null,304,"","","",""]
["Universal ingång 5","Reserv UI 5",null,null,null,305,"","","",""]
["Universal ingång 6","Reserv UI 6",null,null,null,306,"","","",""]
["Universal ingång 7","Reserv UI 7",null,null,null,307,"","","",""]
["Universal ingång 8","Reserv UI 8",null,null,null,308,"","","",""]
["Universal ingång 9","Reserv UI 9 (Option)",null,null,null,313,{"$f":"CONCATENATE(H32,I32,J32)","v":""},{"$f":"IF(C32>0,\" (Digital ingång)\",\"\")","v":""},{"$f":"IF(D32>0,\" (Analog ingång)\",\"\")","v":""},{"$f":"IF(E32>0,\" (Kan ej vara Pulsingång)\",\"\")","v":""}]
["Universal ingång 10","Reserv UI 10 (Option)",null,null,null,314,"",{"$f":"IF(C33>0,\" (Digital ingång)\",\"\")","v":""},{"$f":"IF(D33>0,\" (Analog ingång)\",\"\")","v":""},{"$f":"IF(E33>0,\" (Kan ej vara Pulsingång)\",\"\")","v":""}]
["Universal ingång 11","Reserv UI 11 (Option)",null,null,null,315,"","","",""]
["Universal ingång 12","Reserv UI 12 (Option)",null,null,null,316,"","","",""]
["Universal ingång 13","Reserv UI 13 (Option)",null,null,null,317,"","","",""]
["Universal ingång 14","Reserv UI 14 (Option)",null,null,null,318,{"$f":"CONCATENATE(H37,I37,J37)","v":""},"","",""]
["Universal ingång 15","Reserv UI 15 (Option)",null,null,null,319,"","","",""]
["Universal ingång 16","Reserv UI 16 (Option)",null,null,null,320,"","","",""]
["Universal ingång 17","Reserv UI 17 (Option)",null,null,null,321,"","","",""]
["Universal ingång 18","Reserv UI 18 (Option)",null,null,null,322,"","","",""]
["Universal ingång 19","Reserv UI 19 (Option)",null,null,null,323,"","","",""]
["Universal ingång 20","Reserv UI 20 (Option)",null,null,null,324,"","","",""]
["Universal ingång 21","Reserv UI 21 (Option)",null,null,null,325,"","","",""]
["Universal ingång 22","Reserv UI 22 (Option)",null,null,null,326,"","","",""]
["Universal ingång 23","Reserv UI 23 (Option)",null,null,null,327,"","","",""]
["Universal ingång 24","Reserv UI 24 (Option)",null,null,null,328,"","","",""]
[]
[]
["Digital utgång 1","Reserv DO 1",null,null,null,101," (Digital utgång)"]
["Digital utgång 2","Reserv DO 2",null,null,null,103," (Digital utgång)"]
["Digital utgång 3","Reserv DO 3",null,null,null,105," (Digital utgång)"]
["Digital utgång 4","Reserv DO 4",null,null,null,107," (Digital utgång)"]
["Digital utgång 5","Reserv DO 5 (Option)",null,null,null,109," (Digital utgång)"]
["Digital utgång 6","Reserv DO 6 (Option)",null,null,null,111," (Digital utgång)"]
["Digital utgång 7","Reserv DO 7 (Option)",null,null,null,113," (Digital utgång)"]
["Digital utgång 8","Reserv DO 8 (Option)",null,null,null,115," (Digital utgång)"]
["Digital utgång 9","Reserv DO 9 (Option)",null,null,null,117," (Digital utgång)"]
["Digital utgång 10","Reserv DO 10 (Option)",null,null,null,119," (Digital utgång)"]
["Digital utgång 11","Reserv DO 11 (Option)",null,null,null,121," (Digital utgång)"]
["Digital utgång 12","Reserv DO 12 (Option)",null,null,null,123," (Digital utgång)"]
[]
["Analog utgång 1","Reserv AO 1",null,null,null,329," (Analog utgång)"]
["Analog utgång 2","Reserv AO 2",null,null,null,330," (Analog utgång)"]
["Analog utgång 3","Reserv AO 3",null,null,null,331," (Analog utgång)"]
["Analog utgång 4","Reserv AO 4",null,null,null,332," (Analog utgång)"]
["Analog utgång 5","Reserv AO 5 (Option)",null,null,null,333," (Analog utgång)"]
["Analog utgång 6","Reserv AO 6 (Option)",null,null,null,334," (Analog utgång)"]
["Analog utgång 7","Reserv AO 7 (Option)",null,null,null,335," (Analog utgång)"]
["Analog utgång 8","Reserv AO 8 (Option)",null,null,null,336," (Analog utgång)"]
["Analog utgång 9","Reserv AO 9 (Option)",null,null,null,337," (Analog utgång)"]
["Analog utgång 10","Reserv AO 10 (Option)",null,null,null,338," (Analog utgång)"]
["Analog utgång 11","Reserv AO 11 (Option)",null,null,null,339," (Analog utgång)"]
["Analog utgång 12","Reserv AO 12 (Option)",null,null,null,340," (Analog utgång)"]
[]
["DUC-Kom.",null,null,null,null,901]
["Modbus","Modbus",null,null,null,903]
["M-Bus",null,null,null,null,905]
["TCP/IP",null,null,null,null,"TCP/IP"]

{"sheet":"Ducbestyckning del1","index":1,"n_rows":38,"n_cols":24,"rows_kept":38,"cut":false,"hidden":false,"merged":[[1,10,1,11],[2,1,5,1],[1,2,1,3],[1,4,1,5],[1,6,1,7],[1,8,1,9],[1,14,1,15],[1,16,1,17],[20,16,20,23],[21,16,21,23],[25,16,25,23],[1,18,1,19],[1,20,1,21],[1,22,1,23],[1,12,1,13],[30,22,30,23],[31,20,33,21],[31,22,33,23],[32,15,33,19],[8,16,8,23],[9,16,9,23],[10,16,10,23],[11,16,11,23],[12,16,12,23],[10,5,10,12],[27,16,27,23],[28,16,28,23],[25,5,25,12],[26,5,26,12],[27,5,27,12],[7,5,7,12],[8,5,8,12],[9,5,9,12],[34,20,34,21],[13,16,13,23],[14,16,14,23],[18,16,18,23],[19,16,19,23],[14,5,14,12],[18,5,18,12],[19,5,19,12],[20,5,20,12],[21,5,21,12],[7,16,7,23],[28,5,28,12],[11,5,11,12],[6,1,9,1],[10,1,13,1],[14,1,17,1],[18,1,21,1],[22,1,25,1],[12,5,12,12],[13,5,13,12],[36,20,36,21],[37,20,37,21],[30,1,37,1],[30,11,37,14],[30,15,31,19],[30,20,30,21],[37,7,37,8],[37,9,37,10],[36,15,37,19],[34,15,35,19],[35,20,35,21],[26,1,29,1],[26,16,26,23]]}
[]
[null,null,0,null,1,null,2,null,3,null,4,null,5,null,6,null,7,null,8,null,9,null,10]
[null,"A"]
[null,null,null,"Ducbestyckning"]
[]
[null,null,null,"Universal in",null,"XE16-COM",null,null,null,null,null,null,null,null,"Universal in",null,"E16 Expansionsmodul",null,null,null,"(Option. Ingår i P3E1, P3E2)"]
[null,"B",null,"Plint nr.","I/O","Betjänar:",null,null,null,null,null,null,null,null,"Plint nr.","I/O","Betjänar:"]
[null,null,null,"1:1",1,{"$f":"CONCATENATE(Inledn.!B24,Inledn.!G24)","v":"Reserv UI 1"},null,null,null,null,null,null,null,null,"2:1",9,{"$f":"CONCATENATE(Inledn.!B32,Inledn.!G32)","v":"Reserv UI 9 (Option)"}]
[null,null,null,"1:2",2,{"$f":"CONCATENATE(Inledn.!B25,Inledn.!G25)","v":"Reserv UI 2"},null,null,null,null,null,null,null,null,"2:2",10,{"$f":"CONCATENATE(Inledn.!B33,Inledn.!G33)","v":"Reserv UI 10 (Option)"}]
[null,null,null,"1:3",3,{"$f":"CONCATENATE(Inledn.!B26,Inledn.!G26)","v":"Reserv UI 3"},null,null,null,null,null,null,null,null,"2:3",11,{"$f":"CONCATENATE(Inledn.!B34,Inledn.!G34)","v":"Reserv UI 11 (Option)"}]
[null,"C",null,"1:4",4,{"$f":"CONCATENATE(Inledn.!B27,Inledn.!G27)","v":"Reserv UI 4"},null,null,null,null,null,null,null,null,"2:4",12,{"$f":"CONCATENATE(Inledn.!B35,Inledn.!G35)","v":"Reserv UI 12 (Option)"}]
[null,null,null,"1:5",5,{"$f":"CONCATENATE(Inledn.!B28,Inledn.!G28)","v":"Reserv UI 5"},null,null,null,null,null,null,null,null,"2:5",13,{"$f":"CONCATENATE(Inledn.!B36,Inledn.!G36)","v":"Reserv UI 13 (Option)"}]
[null,null,null,"1:6",6,{"$f":"CONCATENATE(Inledn.!B29,Inledn.!G29)","v":"Reserv UI 6"},null,null,null,null,null,null,null,null,"2:6",14,{"$f":"CONCATENATE(Inledn.!B37,Inledn.!G37)","v":"Reserv UI 14 (Option)"}]
[null,null,null,"1:7",7,{"$f":"CONCATENATE(Inledn.!B30,Inledn.!G30)","v":"Reserv UI 7"},null,null,null,null,null,null,null,null,"2:7",15,{"$f":"CONCATENATE(Inledn.!B38,Inledn.!G38)","v":"Reserv UI 15 (Option)"}]
[null,"D",null,"1:8",8,{"$f":"CONCATENATE(Inledn.!B31,Inledn.!G31)","v":"Reserv UI 8"},null,null,null,null,null,null,null,null,"2:8",16,{"$f":"CONCATENATE(Inledn.!B39,Inledn.!G39)","v":"Reserv UI 16 (Option)"}]
[]
[null,null,null,"Digital ut",null,null,null,null,null,null,null,null,null,null,"Digital ut"]
[null,null,null,"Plint nr.","I/O","Betjänar:",null,null,null,null,null,null,null,null,"Plint nr.","I/O","Betjänar:"]
[null,"E",null,"1:1",1,{"$f":"CONCATENATE(Inledn.!B50,Inledn.!G50)","v":"Reserv DO 1 (Digital utgång)"},null,null,null,null,null,null,null,null,"2:1",5,{"$f":"CONCATENATE(Inledn.!B54,Inledn.!G54)","v":"Reserv DO 5 (Option) (Digital utgång)"}]
[null,null,null,"1:2",2,{"$f":"CONCATENATE(Inledn.!B51,Inledn.!G51)","v":"Reserv DO 2 (Digital utgång)"},null,null,null,null,null,null,null,null,"2:2",6,{"$f":"CONCATENATE(Inledn.!B55,Inledn.!G55)","v":"Reserv DO 6 (Option) (Digital utgång)"}]
[null,null,null,"1:3",3,{"$f":"CONCATENATE(Inledn.!B52,Inledn.!G52)","v":"Reserv DO 3 (Digital utgång)"},null,null,null,null,null,null,null,null,"2:3",7,{"$f":"CONCATENATE(Inledn.!B56,Inledn.!G56)","v":"Reserv DO 7 (Option) (Digital utgång)"}]
[null,null,null,"1:4",4,{"$f":"CONCATENATE(Inledn.!B53,Inledn.!G53)","v":"Reserv DO 4 (Digital utgång)"},null,null,null,null,null,null,null,null,"2:4",8,{"$f":"CONCATENATE(Inledn.!B57,Inledn.!G57)","v":"Reserv DO 8 (Option) (Digital utgång)"}]
[null,"F"]
[null,null,null,"Analog ut",null,null,null,null,null,null,null,null,null,null,"Analog ut"]
[null,null,null,"Plint nr.","I/O","Betjänar:",null,null,null,null,null,null,null,null,"Plint nr.","I/O","Betjänar:"]
[null,null,null,"1:1",1,{"$f":"CONCATENATE(Inledn.!B63,Inledn.!G63)","v":"Reserv AO 1 (Analog utgång)"},null,null,null,null,null,null,null,null,"2:1",5,{"$f":"CONCATENATE(Inledn.!B67,Inledn.!G67)","v":"Reserv AO 5 (Option) (Analog utgång)"}]
[null,"G",null,"1:2",2,{"$f":"CONCATENATE(Inledn.!B64,Inledn.!G64)","v":"Reserv AO 2 (Analog utgång)"},null,null,null,null,null,null,null,null,"2:2",6,{"$f":"CONCATENATE(Inledn.!B68,Inledn.!G68)","v":"Reserv AO 6 (Option) (Analog utgång)"}]
[null,null,null,"1:3",3,{"$f":"CONCATENATE(Inledn.!B65,Inledn.!G65)","v":"Reserv AO 3 (Analog utgång)"},null,null,null,null,null,null,null,null,"2:3",7,{"$f":"CONCATENATE(Inledn.!B69,Inledn.!G69)","v":"Reserv AO 7 (Option) (Analog utgång)"}]
[null,null,null,"1:4",4,{"$f":"CONCATENATE(Inledn.!B66,Inledn.!G66)","v":"Reserv AO 4 (Analog utgång)"},null,null,null,null,null,null,null,null,"2:4",8,{"$f":"CONCATENATE(Inledn.!B70,Inledn.!G70)","v":"Reserv AO 8 (Option) (Analog utgång)"}]
[]
[null,"H",null,null,null,null,null,null,null,null,null,null,null,null,null,{"$f":"CONCATENATE(Inledn.!B6,\", \",Inledn.!B7)","v":", "},null,null,null,null,"ARBETSNUMMER",null,"RITNINGSNUMMER"]
[null,null,null,null,null,null,null,null,null,null,null,null,null,null,null,null,null,null,null,null,{"$f":"Inledn.!B11","v":"20-101"},null,{"$f":"CONCATENATE(U32,\"00\",X36)","v":"20-10100"}]
[null,null,null,null,null,null,null,null,null,null,null,null,null,null,null,{"$f":"CONCATENATE(Inledn.!B8,\", \",Inledn.!B9)","v":", "}]
[]
[null,null,null,null,null,null,null,null,null,null,null,null,null,null,null,"DUCBESTYCKNING",null,null,null,null,"HANDLÄGGES AV",null,"RITAD AV","BLAD"]
[null,null,null,null,null,null,null,null,null,null,null,null,null,null,null,null,null,null,null,null,{"$f":"Inledn.!B13","v":0},null,"SN "]
[null,null,null,null,null,null,null,null,null,null,null,null,null,null,null,{"$f":"Inledn.!G5","v":"RELATIONSHANDLING"},null,null,null,null,"Datum",null,"REV.","FORTS.BL"]
[null,null,"NR.","ÄNDRING",20220511,"SIGN.","DATUM","010-330 80 00",null,"www.bastec.se",null,null,null,null,null,null,null,null,null,null,{"$f":"Inledn.!B10","v":"00:00:00"},null,{"$f":"Inledn.!B14","v":"SN "}]

{"sheet":"Ducbestyckning del2","index":2,"n_rows":38,"n_cols":24,"rows_kept":38,"cut":false,"hidden":false,"merged":[[34,15,35,19],[34,20,34,21],[35,20,35,21],[36,15,37,19],[36,20,36,21],[22,1,25,1],[25,5,25,12],[25,16,25,23],[30,1,37,1],[30,11,37,14],[30,15,31,19],[30,20,30,21],[30,22,30,23],[31,20,33,21],[31,22,33,23],[32,15,33,19],[37,7,37,8],[37,9,37,10],[37,20,37,21],[28,5,28,12],[28,16,28,23],[26,1,29,1],[26,5,26,12],[26,16,26,23],[27,5,27,12],[27,16,27,23],[14,1,17,1],[14,5,14,12],[14,16,14,23],[18,1,21,1],[18,5,18,12],[18,16,18,23],[19,5,19,12],[19,16,19,23],[20,5,20,12],[20,16,20,23],[21,5,21,12],[21,16,21,23],[10,1,13,1],[10,5,10,12],[10,16,10,23],[11,5,11,12],[11,16,11,23],[12,5,12,12],[12,16,12,23],[13,5,13,12],[13,16,13,23],[6,1,9,1],[7,5,7,12],[7,16,7,23],[8,5,8,12],[8,16,8,23],[9,5,9,12],[9,16,9,23],[1,14,1,15],[1,16,1,17],[1,18,1,19],[1,20,1,21],[1,22,1,23],[1,10,1,11],[1,12,1,13],[2,1,5,1],[1,2,1,3],[1,4,1,5],[1,6,1,7],[1,8,1,9]]}
[]
[null,null,0,null,1,null,2,null,3,null,4,null,5,null,6,null,7,null,8,null,9,null,10]
[null,"A"]
[null,null,null,"Ducbestyckning"]
[]
[null,null,null,"Universal in",null,"E16 Expansionsmodul",null,null,null,"(Option. Ingår i P3E2)"]
[null,"B",null,"Plint nr.","I/O","Betjänar:"]
[null,null,null,"3:1",1,{"$f":"CONCATENATE(Inledn.!B40,Inledn.!G40)","v":"Reserv UI 17 (Option)"}]
[null,null,null,"3:2",2,{"$f":"CONCATENATE(Inledn.!B41,Inledn.!G41)","v":"Reserv UI 18 (Option)"}]
[null,null,null,"3:3",3,{"$f":"CONCATENATE(Inledn.!B42,Inledn.!G42)","v":"Reserv UI 19 (Option)"}]
[null,"C",null,"3:4",4,{"$f":"CONCATENATE(Inledn.!B43,Inledn.!G43)","v":"Reserv UI 20 (Option)"}]
[null,null,null,"3:5",5,{"$f":"CONCATENATE(Inledn.!B44,Inledn.!G44)","v":"Reserv UI 21 (Option)"}]
[null,null,null,"3:6",6,{"$f":"CONCATENATE(Inledn.!B45,Inledn.!G45)","v":"Reserv UI 22 (Option)"}]
[null,null,null,"3:7",7,{"$f":"CONCATENATE(Inledn.!B46,Inledn.!G46)","v":"Reserv UI 23 (Option)"}]
[null,"D",null,"3:8",8,{"$f":"CONCATENATE(Inledn.!B47,Inledn.!G47)","v":"Reserv UI 24 (Option)"}]
[]
[null,null,null,"Digital ut"]
[null,null,null,"Plint nr.","I/O","Betjänar:"]
[null,"E",null,"3:1",1,{"$f":"CONCATENATE(Inledn.!B58,Inledn.!G58)","v":"Reserv DO 9 (Option) (Digital utgång)"}]
[null,null,null,"3:2",2,{"$f":"CONCATENATE(Inledn.!B59,Inledn.!G59)","v":"Reserv DO 10 (Option) (Digital utgång)"}]
[null,null,null,"3:3",3,{"$f":"CONCATENATE(Inledn.!B60,Inledn.!G60)","v":"Reserv DO 11 (Option) (Digital utgång)"}]
[null,null,null,"3:4",4,{"$f":"CONCATENATE(Inledn.!B61,Inledn.!G61)","v":"Reserv DO 12 (Option) (Digital utgång)"}]
[null,"F"]
[null,null,null,"Analog ut"]
[null,null,null,"Plint nr.","I/O","Betjänar:"]
[null,null,null,"3:1",1,{"$f":"CONCATENATE(Inledn.!B71,Inledn.!G71)","v":"Reserv AO 9 (Option) (Analog utgång)"}]
[null,"G",null,"3:2",2,{"$f":"CONCATENATE(Inledn.!B72,Inledn.!G72)","v":"Reserv AO 10 (Option) (Analog utgång)"}]
[null,null,null,"3:3",3,{"$f":"CONCATENATE(Inledn.!B73,Inledn.!G73)","v":"Reserv AO 11 (Option) (Analog utgång)"}]
[null,null,null,"3:4",4,{"$f":"CONCATENATE(Inledn.!B74,Inledn.!G74)","v":"Reserv AO 12 (Option) (Analog utgång)"}]
[]
[null,"H",null,null,null,null,null,null,null,null,null,null,null,null,null,{"$f":"CONCATENATE(Inledn.!B6,\", \",Inledn.!B7)","v":", "},null,null,null,null,"ARBETSNUMMER",null,"RITNINGSNUMMER"]
[null,null,null,null,null,null,null,null,null,null,null,null,null,null,null,null,null,null,null,null,{"$f":"Inledn.!B11","v":"20-101"},null,{"$f":"CONCATENATE(U32,\"00\",X36)","v":"20-10100"}]
[null,null,null,null,null,null,null,null,null,null,null,null,null,null,null,{"$f":"CONCATENATE(Inledn.!B8,\", \",Inledn.!B9)","v":", "}]
[]
[null,null,null,null,null,null,null,null,null,null,null,null,null,null,null,"DUCBESTYCKNING",null,null,null,null,"HANDLÄGGES AV",null,"RITAD AV","BLAD"]
[null,null,null,null,null,null,null,null,null,null,null,null,null,null,null,null,null,null,null,null,{"$f":"Inledn.!B13","v":0},null,"SN "]
[null,null,null,null,null,null,null,null,null,null,null,null,null,null,null,{"$f":"Inledn.!G5","v":"RELATIONSHANDLING"},null,null,null,null,"Datum",null,"REV.","FORTS.BL"]
[null,null,"NR.","ÄNDRING",{"$f":"'Ducbestyckning del1'!E38","v":20220511},"SIGN.","DATUM","010-330 80 00",null,"www.bastec.se",null,null,null,null,null,null,null,null,null,null,{"$f":"Inledn.!B10","v":"00:00:00"},null,{"$f":"Inledn.!B14","v":"SN "}]

{"sheet":"Gruppschema","index":3,"n_rows":31,"n_cols":11,"rows_kept":31,"cut":false,"hidden":false,"merged":[[2,10,3,10],[4,3,4,7],[10,3,10,7],[2,2,3,2],[2,3,3,7],[2,8,3,8],[2,9,3,9],[5,3,5,7],[6,3,6,7],[7,3,7,7],[8,3,8,7],[9,3,9,7],[22,3,22,7],[11,3,11,7],[12,3,12,7],[13,3,13,7],[14,3,14,7],[15,3,15,7],[16,3,16,7],[17,3,17,7],[18,3,18,7],[19,3,19,7],[20,3,20,7],[21,3,21,7],[30,2,31,6],[23,3,23,7],[24,3,24,7],[25,3,25,7],[26,3,26,7],[27,3,27,7],[29,2,29,6]]}
[]
[]
[null,null,"Grupp Nr:","Gruppen omfattar:",null,null,null,null,"Säkring Amp:","Area Kvmm:","Ö-ström Amp."]
[]
[null,null,"S1",{"$f":"Inledn.!B18","v":"MANÖVER 230 VAC"},null,null,null,null,6,1.5]
[null,null,"S2",{"$f":"Inledn.!B19","v":"MATNING 1"},null,null,null,null,10,1.5]
[null,null,"S3",{"$f":"Inledn.!B20","v":"MATNING 2"},null,null,null,null,10,1.5]
[null,null,"S4",{"$f":"Inledn.!B21","v":"MATNING 3"},null,null,null,null,10,1.5]
[null,null,"S5",{"$f":"Inledn.!B22","v":"MATNING 4"},null,null,null,null,10,1.5]
[]
[]
[]
[]
[]
[]
[]
[]
[]
[]
[]
[]
[]
[]
[]
[]
[]
[]
[]
[]
[null,null,{"$f":"CONCATENATE(Inledn.!B6,\", \",Inledn.!B7)","v":", "}]
[null,null,{"$f":"CONCATENATE(Inledn.!B8,\", \",Inledn.!B9)","v":", "}]

{"sheet":"Blad1","index":4,"n_rows":38,"n_cols":24,"rows_kept":38,"cut":false,"hidden":false,"merged":[[30,1,37,1],[30,11,37,14],[30,15,31,19],[30,20,30,21],[30,22,30,23],[31,20,33,21],[31,22,33,23],[32,15,33,19],[34,15,35,19],[34,20,34,21],[35,20,35,21],[36,15,37,19],[36,20,36,21],[37,7,37,8],[37,9,37,10],[37,20,37,21],[26,1,29,1],[1,14,1,15],[1,16,1,17],[1,18,1,19],[1,20,1,21],[6,1,9,1],[10,1,13,1],[14,1,17,1],[18,1,21,1],[22,1,25,1],[1,22,1,23],[2,1,5,1],[1,2,1,3],[1,4,1,5],[1,6,1,7],[1,8,1,9],[1,10,1,11],[1,12,1,13]]}
[]
[null,null,0,null,1,null,2,null,3,null,4,null,5,null,6,null,7,null,8,null,9,null,10]
[null,"A"]
[]
[]
[]
[null,"B"]
[]
[]
[]
[null,"C"]
[]
[]
[]
[null,"D"]
[]
[]
[]
[null,"E"]
[]
[]
[]
[null,"F"]
[]
[]
[]
[null,"G"]
[]
[]
[]
[null,"H",null,null,null,null,null,null,null,null,null,null,null,null,null,{"$f":"CONCATENATE(Inledn.!B6,\", \",Inledn.!B7)","v":", "},null,null,null,null,"ARBETSNUMMER",null,"RITNINGSNUMMER"]
[null,null,null,null,null,null,null,null,null,null,null,null,null,null,null,null,null,null,null,null,{"$f":"Inledn.!B11","v":"20-101"},null,{"$f":"CONCATENATE(U32,\"00\",X36)","v":"20-101001"}]
[null,null,null,null,null,null,null,null,null,null,null,null,null,null,null,{"$f":"CONCATENATE(Inledn.!B8,\", \",Inledn.!B9)","v":", "}]
[]
[null,null,null,null,null,null,null,null,null,null,null,null,null,null,null,"FÖRTECKNING, PLACERING & APPARATLISTA",null,null,null,null,"HANDLÄGGES AV",null,"RITAD AV","BLAD"]
[null,null,null,null,null,null,null,null,null,null,null,null,null,null,null,null,null,null,null,null,{"$f":"Inledn.!B13","v":0},null,"Kjell C",1]
[null,null,null,null,null,null,null,null,null,null,null,null,null,null,null,{"$f":"Inledn.!G5","v":"RELATIONSHANDLING"},null,null,null,null,"Datum",null,"REV.","FORTS.BL"]
[null,null,"NR.","ÄNDRING",{"$f":"'Ducbestyckning del1'!$E$38","v":20220511},"SIGN.","DATUM","010-330 80 00",null,"www.bastec.se",null,null,null,null,null,null,null,null,null,null,{"$f":"Inledn.!B10","v":"00:00:00"},null,{"$f":"Inledn.!B14","v":"SN "},2]

{"sheet":"Blad2","index":5,"n_rows":38,"n_cols":24,"rows_kept":38,"cut":false,"hidden":false,"merged":[[6,1,9,1],[14,1,17,1],[18,1,21,1],[22,1,25,1],[26,1,29,1],[10,1,13,1],[1,2,1,3],[1,4,1,5],[1,6,1,7],[1,8,1,9],[2,1,5,1],[34,20,34,21],[36,20,36,21],[30,1,37,1],[34,15,35,19],[36,15,37,19],[37,7,37,8],[37,9,37,10],[1,22,1,23],[35,20,35,21],[1,10,1,11],[1,12,1,13],[1,14,1,15],[1,16,1,17],[1,18,1,19],[31,20,33,21],[31,22,33,23],[30,20,30,21],[30,22,30,23],[1,20,1,21],[30,11,37,14],[37,20,37,21],[30,15,31,19],[32,15,33,19]]}
[]
[null,null,0,null,1,null,2,null,3,null,4,null,5,null,6,null,7,null,8,null,9,null,10]
[null,"A"]
[]
[]
[]
[null,"B"]
[]
[]
[]
[null,"C"]
[]
[]
[]
[null,"D"]
[]
[]
[]
[null,"E"]
[]
[]
[]
[null,"F"]
[]
[]
[]
[null,"G"]
[null,null,null,null,"OP1 -Operatörspanel är option"]
[]
[]
[null,"H",null,null,null,null,null,null,null,null,null,null,null,null,null,{"$f":"CONCATENATE(Inledn.!B6,\", \",Inledn.!B7)","v":", "},null,null,null,null,"ARBETSNUMMER",null,"RITNINGSNUMMER"]
[null,null,null,null,null,null,null,null,null,null,null,null,null,null,null,null,null,null,null,null,{"$f":"Inledn.!B11","v":"20-101"},null,{"$f":"CONCATENATE(U32,\"00\",X36)","v":"20-101002"}]
[null,null,null,null,null,null,null,null,null,null,null,null,null,null,null,{"$f":"CONCATENATE(Inledn.!B8,\", \",Inledn.!B9)","v":", "}]
[]
[null,null,null,null,null,null,null,null,null,null,null,null,null,null,null,"FÖRTECKNING, PLACERING & APPARATLISTA",null,null,null,null,"HANDLÄGGES AV",null,"RITAD AV","BLAD"]
[null,null,null,null,null,null,null,null,null,null,null,null,null,null,null,null,null,null,null,null,{"$f":"Inledn.!B13","v":0},null,"Kjell C",2]
[null,null,null,null,null,null,null,null,null,null,null,null,null,null,null,{"$f":"Inledn.!G5","v":"RELATIONSHANDLING"},null,null,null,null,"Datum",null,"REV.","FORTS.BL"]
[null,null,"NR.","ÄNDRING",{"$f":"'Ducbestyckning del1'!$E$38","v":20220511},"SIGN.","DATUM","010-330 80 00",null,"www.bastec.se",null,null,null,null,null,null,null,null,null,null,{"$f":"Inledn.!B10","v":"00:00:00"},null,{"$f":"Inledn.!B14","v":"SN "},3]

{"sheet":"Blad3","index":6,"n_rows":38,"n_cols":24,"rows_kept":38,"cut":false,"hidden":false,"merged":[[30,1,37,1],[30,11,37,14],[30,15,31,19],[30,20,30,21],[30,22,30,23],[31,20,33,21],[31,22,33,23],[32,15,33,19],[34,15,35,19],[34,20,34,21],[35,20,35,21],[36,15,37,19],[36,20,36,21],[37,7,37,8],[37,9,37,10],[37,20,37,21],[26,1,29,1],[1,14,1,15],[1,16,1,17],[1,18,1,19],[1,20,1,21],[6,1,9,1],[10,1,13,1],[14,1,17,1],[18,1,21,1],[22,1,25,1],[1,22,1,23],[2,1,5,1],[1,2,1,3],[1,4,1,5],[1,6,1,7],[1,8,1,9],[1,10,1,11],[1,12,1,13]]}
[]
[null,null,0,null,1,null,2,null,3,null,4,null,5,null,6,null,7,null,8,null,9,null,10]
[null,"A"]
[]
[]
[]
[null,"B"]
[]
[]
[]
[null,"C"]
[]
[]
[]
[null,"D"]
[]
[]
[]
[null,"E"]
[]
[]
[]
[null,"F"]
[]
[]
[]
[null,"G"]
[]
[]
[]
[null,"H",null,null,null,null,null,null,null,null,null,null,null,null,null,{"$f":"CONCATENATE(Inledn.!B6,\", \",Inledn.!B7)","v":", "},null,null,null,null,"ARBETSNUMMER",null,"RITNINGSNUMMER"]
[null,null,null,null,null,null,null,null,null,null,null,null,null,null,null,null,null,null,null,null,{"$f":"Inledn.!B11","v":"20-101"},null,{"$f":"CONCATENATE(U32,\"00\",X36)","v":"20-101003"}]
[null,null,null,null,null,null,null,null,null,null,null,null,null,null,null,{"$f":"CONCATENATE(Inledn.!B8,\", \",Inledn.!B9)","v":", "}]
[]
[null,null,null,null,null,null,null,null,null,null,null,null,null,null,null,"FÖRTECKNING, PLACERING & APPARATLISTA",null,null,null,null,"HANDLÄGGES AV",null,"RITAD AV","BLAD"]
[null,null,null,null,null,null,null,null,null,null,null,null,null,null,null,null,null,null,null,null,{"$f":"Inledn.!B13","v":0},null,"Kjell C",3]
[null,null,null,null,null,null,null,null,null,null,null,null,null,null,null,{"$f":"Inledn.!G5","v":"RELATIONSHANDLING"},null,null,null,null,"Datum",null,"REV.","FORTS.BL"]
[null,null,"NR.","ÄNDRING",{"$f":"'Ducbestyckning del1'!$E$38","v":20220511},"SIGN.","DATUM","010-330 80 00",null,"www.bastec.se",null,null,null,null,null,null,null,null,null,null,{"$f":"Inledn.!B10","v":"00:00:00"},null,{"$f":"Inledn.!B14","v":"SN "},4]

{"sheet":"Blad4","index":7,"n_rows":38,"n_cols":24,"rows_kept":38,"cut":false,"hidden":false,"merged":[[1,12,1,13],[2,1,5,1],[1,2,1,3],[1,4,1,5],[1,6,1,7],[1,8,1,9],[1,10,1,11],[1,14,1,15],[1,16,1,17],[1,18,1,19],[1,20,1,21],[1,22,1,23],[34,20,34,21],[35,20,35,21],[36,15,37,19],[36,20,36,21],[37,20,37,21],[34,15,35,19],[30,22,30,23],[31,20,33,21],[31,22,33,23],[32,15,33,19],[30,20,30,21],[6,1,9,1],[10,1,13,1],[14,1,17,1],[18,1,21,1],[22,1,25,1],[26,1,29,1],[30,1,37,1],[30,11,37,14],[30,15,31,19],[37,7,37,8],[37,9,37,10]]}
[]
[null,null,0,null,1,null,2,null,3,null,4,null,5,null,6,null,7,null,8,null,9,null,10]
[null,"A"]
[]
[]
[]
[null,"B"]
[]
[]
[]
[null,"C"]
[]
[null,null,null,null,null,null,null,null,null,null,null,null,null,null,null,null,null,null,{"$f":"Inledn.!B18","v":"MANÖVER 230 VAC"}]
[]
[null,"D"]
[null,null,null,null,null,null,null,null,null,null,null,null,null,null,null,null,null,null,{"$f":"Inledn.!B19","v":"MATNING 1"}]
[null,null,null,null,null,null,null,null,null,null,null,null,null,null,null,null,null,null,"MATNING 230 VAC"]
[]
[null,"E"]
[null,null,null,null,null,null,null,null,null,null,null,null,null,null,null,null,null,null,{"$f":"Inledn.!B20","v":"MATNING 2"}]
[null,null,null,null,null,null,null,null,null,null,null,null,null,null,null,null,null,null,"MATNING 230 VAC"]
[]
[null,"F"]
[null,null,null,null,null,null,null,null,null,null,null,null,null,null,null,null,null,null,{"$f":"Inledn.!B21","v":"MATNING 3"}]
[null,null,null,null,null,null,null,null,null,null,null,null,null,null,null,null,null,null,"MATNING 230 VAC"]
[]
[null,"G"]
[null,null,null,null,null,null,null,null,null,null,null,null,null,null,null,null,null,null,{"$f":"Inledn.!B22","v":"MATNING 4"}]
[null,null,null,null,null,null,null,null,null,null,null,null,null,null,null,null,null,null,"MATNING 230 VAC"]
[]
[null,"H",null,null,null,null,null,null,null,null,null,null,null,null,null,{"$f":"CONCATENATE(Inledn.!B6,\", \",Inledn.!B7)","v":", "},null,null,null,null,"ARBETSNUMMER",null,"RITNINGSNUMMER"]
[null,null,null,null,null,null,null,null,null,null,null,null,null,null,null,null,null,null,null,null,{"$f":"Inledn.!B11","v":"20-101"},null,{"$f":"CONCATENATE(U32,\"00\",X36)","v":"20-101004"}]
[null,null,null,null,null,null,null,null,null,null,null,null,null,null,null,{"$f":"CONCATENATE(Inledn.!B8,\", \",Inledn.!B9)","v":", "}]
[]
[null,null,null,null,null,null,null,null,null,null,null,null,null,null,null,"KRETSSCHEMA KRAFT",null,null,null,null,"HANDLÄGGES AV",null,"RITAD AV","BLAD"]
[null,null,null,null,null,null,null,null,null,null,null,null,null,null,null,null,null,null,null,null,{"$f":"Inledn.!B13","v":0},null,"Kjell C",4]
[null,null,null,null,null,null,null,null,null,null,null,null,null,null,null,{"$f":"Inledn.!G5","v":"RELATIONSHANDLING"},null,null,null,null,"Datum",null,"REV.","FORTS.BL"]
[null,null,"NR.","ÄNDRING",{"$f":"'Ducbestyckning del1'!$E$38","v":20220511},"SIGN.","DATUM","010-330 80 00",null,"www.bastec.se",null,null,null,null,null,null,null,null,null,null,{"$f":"Inledn.!B10","v":"00:00:00"},null,{"$f":"Inledn.!B14","v":"SN "},21]

{"sheet":"Blad21","index":8,"n_rows":38,"n_cols":24,"rows_kept":38,"cut":false,"hidden":false,"merged":[[1,12,1,13],[2,1,5,1],[1,2,1,3],[1,4,1,5],[1,6,1,7],[1,8,1,9],[1,10,1,11],[1,14,1,15],[1,16,1,17],[1,18,1,19],[1,20,1,21],[1,22,1,23],[34,20,34,21],[35,20,35,21],[36,15,37,19],[36,20,36,21],[37,20,37,21],[34,15,35,19],[30,22,30,23],[31,20,33,21],[31,22,33,23],[32,15,33,19],[30,20,30,21],[6,1,9,1],[10,1,13,1],[14,1,17,1],[18,1,21,1],[22,1,25,1],[26,1,29,1],[30,1,37,1],[30,11,37,14],[30,15,31,19],[37,7,37,8],[37,9,37,10]]}
[]
[null,null,0,null,1,null,2,null,3,null,4,null,5,null,6,null,7,null,8,null,9,null,10]
[null,"A"]
[]
[]
[]
[null,"B"]
[]
[]
[]
[null,"C"]
[]
[]
[]
[null,"D"]
[]
[]
[]
[null,"E"]
[]
[]
[]
[null,"F"]
[]
[]
[]
[null,"G"]
[]
[]
[]
[null,"H",null,null,null,null,null,null,null,null,null,null,null,null,null,{"$f":"CONCATENATE(Inledn.!B6,\", \",Inledn.!B7)","v":", "},null,null,null,null,"ARBETSNUMMER",null,"RITNINGSNUMMER"]
[null,null,null,null,null,null,null,null,null,null,null,null,null,null,null,null,null,null,null,null,{"$f":"Inledn.!B11","v":"20-101"},null,{"$f":"CONCATENATE(U32,\"00\",X36)","v":"20-1010021"}]
[null,null,null,null,null,null,null,null,null,null,null,null,null,null,null,{"$f":"CONCATENATE(Inledn.!B8,\", \",Inledn.!B9)","v":", "}]
[]
[null,null,null,null,null,null,null,null,null,null,null,null,null,null,null,"KRETSSCHEMA MANÖVER",null,null,null,null,"HANDLÄGGES AV",null,"RITAD AV","BLAD"]
[null,null,null,null,null,null,null,null,null,null,null,null,null,null,null,null,null,null,null,null,{"$f":"Inledn.!B13","v":0},null,"Kjell C",21]
[null,null,null,null,null,null,null,null,null,null,null,null,null,null,null,{"$f":"Inledn.!G5","v":"RELATIONSHANDLING"},null,null,null,null,"Datum",null,"REV.","FORTS.BL"]
[null,null,"NR.","ÄNDRING",{"$f":"'Ducbestyckning del1'!$E$38","v":20220511},"SIGN.","DATUM","010-330 80 00",null,"www.bastec.se",null,null,null,null,null,null,null,null,null,null,{"$f":"Inledn.!B10","v":"00:00:00"},null,{"$f":"Inledn.!B14","v":"SN "},22]

{"sheet":"Blad22","index":9,"n_rows":38,"n_cols":24,"rows_kept":38,"cut":false,"hidden":false,"merged":[[1,12,1,13],[2,1,5,1],[1,2,1,3],[1,4,1,5],[1,6,1,7],[1,8,1,9],[1,10,1,11],[1,14,1,15],[1,16,1,17],[1,18,1,19],[1,20,1,21],[1,22,1,23],[34,20,34,21],[35,20,35,21],[36,15,37,19],[36,20,36,21],[37,20,37,21],[34,15,35,19],[30,22,30,23],[31,20,33,21],[31,22,33,23],[32,15,33,19],[30,20,30,21],[6,1,9,1],[10,1,13,1],[14,1,17,1],[18,1,21,1],[22,1,25,1],[26,1,29,1],[30,1,37,1],[30,11,37,14],[30,15,31,19],[37,7,37,8],[37,9,37,10]]}
[]
[null,null,0,null,1,null,2,null,3,null,4,null,5,null,6,null,7,null,8,null,9,null,10]
[null,"A"]
[]
[]
[null,null,null,null,null,null,null,null,null,null,null,null,null,null,null,null,null,null,null,null,{"$f":"Inledn.!B50","v":"Reserv DO 1"}]
[null,"B",null,null,null,null,null,null,null,null,null,null,null,null,null,null,null,null,null,null,"MANÖVER"]
[]
[null,null,null,null,null,null,null,null,null,null,null,null,null,null,null,null,null,null,null,null,{"$f":"Inledn.!B51","v":"Reserv DO 2"}]
[null,null,null,null,null,null,null,null,null,null,null,null,null,null,null,null,null,null,null,null,"MANÖVER"]
[null,"C"]
[null,null,null,null,null,null,null,null,null,null,null,null,null,null,null,null,null,null,null,null,{"$f":"Inledn.!B52","v":"Reserv DO 3"}]
[null,null,null,null,null,null,null,null,null,null,null,null,null,null,null,null,null,null,null,null,"MANÖVER"]
[]
[null,"D",null,null,null,null,null,null,null,null,null,null,null,null,null,null,null,null,null,null,{"$f":"Inledn.!B53","v":"Reserv DO 4"}]
[null,null,null,null,null,null,null,null,null,null,null,null,null,null,null,null,null,null,null,null,"MANÖVER"]
[]
[null,null,null,null,null,null,null,null,null,null,null,null,null,null,null,null,null,null,null,null,{"$f":"Inledn.!B54","v":"Reserv DO 5 (Option)"}]
[null,"E",null,null,null,null,null,null,null,null,null,null,null,null,null,null,null,null,null,null,"MANÖVER"]
[]
[null,null,null,null,null,null,null,null,null,null,null,null,null,null,null,null,null,null,null,null,{"$f":"Inledn.!B55","v":"Reserv DO 6 (Option)"}]
[null,null,null,null,null,null,null,null,null,null,null,null,null,null,null,null,null,null,null,null,"MANÖVER"]
[null,"F"]
[null,null,null,null,null,null,null,null,null,null,null,null,null,null,null,null,null,null,null,null,{"$f":"Inledn.!B56","v":"Reserv DO 7 (Option)"}]
[null,null,null,null,null,null,null,null,null,null,null,null,null,null,null,null,null,null,null,null,"MANÖVER"]
[]
[null,"G",null,null,null,null,null,null,null,null,null,null,null,null,null,null,null,null,null,null,{"$f":"Inledn.!B57","v":"Reserv DO 8 (Option)"}]
[null,null,null,null,null,null,null,null,null,null,null,null,null,null,null,null,null,null,null,null,"MANÖVER"]
[]
[]
[null,"H",null,null,null,null,null,null,null,null,null,null,null,null,null,{"$f":"CONCATENATE(Inledn.!B6,\", \",Inledn.!B7)","v":", "},null,null,null,null,"ARBETSNUMMER",null,"RITNINGSNUMMER"]
[null,null,null,null,null,null,null,null,null,null,null,null,null,null,null,null,null,null,null,null,{"$f":"Inledn.!B11","v":"20-101"},null,{"$f":"CONCATENATE(U32,\"00\",X36)","v":"20-1010022"}]
[null,null,null,null,null,null,null,null,null,null,null,null,null,null,null,{"$f":"CONCATENATE(Inledn.!B8,\", \",Inledn.!B9)","v":", "}]
[]
[null,null,null,null,null,null,null,null,null,null,null,null,null,null,null,"KRETSSCHEMA MANÖVER",null,null,null,null,"HANDLÄGGES AV",null,"RITAD AV","BLAD"]
[null,null,null,null,null,null,null,null,null,null,null,null,null,null,null,null,null,null,null,null,{"$f":"Inledn.!B13","v":0},null,"Kjell C",22]
[null,null,null,null,null,null,null,null,null,null,null,null,null,null,null,{"$f":"Inledn.!G5","v":"RELATIONSHANDLING"},null,null,null,null,"Datum",null,"REV.","FORTS.BL"]
[null,null,"NR.","ÄNDRING",{"$f":"'Ducbestyckning del1'!$E$38","v":20220511},"SIGN.","DATUM","010-330 80 00",null,"www.bastec.se",null,null,null,null,null,null,null,null,null,null,{"$f":"Inledn.!B10","v":"00:00:00"},null,{"$f":"Inledn.!B14","v":"SN "},101]

{"sheet":"Blad101","index":10,"n_rows":38,"n_cols":24,"rows_kept":38,"cut":false,"hidden":false,"merged":[[1,12,1,13],[2,1,5,1],[1,2,1,3],[1,4,1,5],[1,6,1,7],[1,8,1,9],[1,10,1,11],[1,14,1,15],[1,16,1,17],[1,18,1,19],[1,20,1,21],[1,22,1,23],[34,20,34,21],[35,20,35,21],[36,15,37,19],[36,20,36,21],[37,20,37,21],[34,15,35,19],[30,22,30,23],[31,20,33,21],[31,22,33,23],[32,15,33,19],[30,20,30,21],[6,1,9,1],[10,1,13,1],[14,1,17,1],[18,1,21,1],[22,1,25,1],[26,1,29,1],[30,1,37,1],[30,11,37,14],[30,15,31,19],[37,7,37,8],[37,9,37,10]]}
[]
[null,null,0,null,1,null,2,null,3,null,4,null,5,null,6,null,7,null,8,null,9,null,10]
[null,"A"]
[]
[]
[]
[null,"B"]
[]
[]
[]
[null,"C"]
[]
[]
[]
[null,"D"]
[]
[]
[]
[null,"E"]
[]
[]
[]
[null,"F"]
[]
[]
[]
[null,"G"]
[]
[]
[]
[null,"H",null,null,null,null,null,null,null,null,null,null,null,null,null,{"$f":"CONCATENATE(Inledn.!B6,\", \",Inledn.!B7)","v":", "},null,null,null,null,"ARBETSNUMMER",null,"RITNINGSNUMMER"]
[null,null,null,null,null,null,null,null,null,null,null,null,null,null,null,null,null,null,null,null,{"$f":"Inledn.!B11","v":"20-101"},null,{"$f":"CONCATENATE(U32,\"00\",X36)","v":"20-10100101"}]
[null,null,null,null,null,null,null,null,null,null,null,null,null,null,null,{"$f":"CONCATENATE(Inledn.!B8,\", \",Inledn.!B9)","v":", "}]
[]
[null,null,null,null,null,null,null,null,null,null,null,null,null,null,null,"KRETSSCHEMA DUC",null,null,null,null,"HANDLÄGGES AV",null,"RITAD AV","BLAD"]
[null,null,null,null,null,null,null,null,null,null,null,null,null,null,null,null,null,null,null,null,{"$f":"Inledn.!B13","v":0},null,"Kjell C",101]
[null,null,null,null,null,null,null,null,null,null,null,null,null,null,null,{"$f":"Inledn.!G5","v":"RELATIONSHANDLING"},null,null,null,null,"Datum",null,"REV.","FORTS.BL"]
[null,null,"NR.","ÄNDRING",{"$f":"'Ducbestyckning del1'!$E$38","v":20220511},"SIGN.","DATUM","010-330 80 00",null,"www.bastec.se",null,null,null,null,null,null,null,null,null,null,{"$f":"Inledn.!B10","v":"00:00:00"},null,{"$f":"Inledn.!B14","v":"SN "},102]

{"sheet":"Blad102","index":11,"n_rows":38,"n_cols":24,"rows_kept":38,"cut":false,"hidden":false,"merged":[[1,12,1,13],[2,1,5,1],[1,2,1,3],[1,4,1,5],[1,6,1,7],[1,8,1,9],[1,10,1,11],[1,14,1,15],[1,16,1,17],[1,18,1,19],[1,20,1,21],[1,22,1,23],[34,20,34,21],[35,20,35,21],[36,15,37,19],[36,20,36,21],[37,20,37,21],[34,15,35,19],[30,22,30,23],[31,20,33,21],[31,22,33,23],[32,15,33,19],[30,20,30,21],[6,1,9,1],[10,1,13,1],[14,1,17,1],[18,1,21,1],[22,1,25,1],[26,1,29,1],[30,1,37,1],[30,11,37,14],[30,15,31,19],[37,7,37,8],[37,9,37,10]]}
[]
[null,null,0,null,1,null,2,null,3,null,4,null,5,null,6,null,7,null,8,null,9,null,10]
[null,"A"]
[]
[]
[null,null,null,null,null,null,null,null,null,null,null,null,null,null,null,null,null,null,null,{"$f":"Inledn.!B24","v":"Reserv UI 1"}]
[null,"B",null,null,null,null,null,null,null,null,null,null,null,null,null,null,null,null,null,{"$f":"Inledn.!G24","v":""}]
[]
[null,null,null,null,null,null,null,null,null,null,null,null,null,null,null,null,null,null,null,{"$f":"Inledn.!B25","v":"Reserv UI 2"}]
[null,null,null,null,null,null,null,null,null,null,null,null,null,null,null,null,null,null,null,{"$f":"Inledn.!G25","v":""}]
[null,"C"]
[null,null,null,null,null,null,null,null,null,null,null,null,null,null,null,null,null,null,null,{"$f":"Inledn.!B26","v":"Reserv UI 3"}]
[null,null,null,null,null,null,null,null,null,null,null,null,null,null,null,null,null,null,null,{"$f":"Inledn.!G26","v":""}]
[]
[null,"D",null,null,null,null,null,null,null,null,null,null,null,null,null,null,null,null,null,{"$f":"Inledn.!B27","v":"Reserv UI 4"}]
[null,null,null,null,null,null,null,null,null,null,null,null,null,null,null,null,null,null,null,{"$f":"Inledn.!G27","v":""}]
[]
[null,null,null,null,null,null,null,null,null,null,null,null,null,null,null,null,null,null,null,{"$f":"Inledn.!B28","v":"Reserv UI 5"}]
[null,"E",null,null,null,null,null,null,null,null,null,null,null,null,null,null,null,null,null,{"$f":"Inledn.!G28","v":""}]
[]
[null,null,null,null,null,null,null,null,null,null,null,null,null,null,null,null,null,null,null,{"$f":"Inledn.!B29","v":"Reserv UI 6"}]
[null,null,null,null,null,null,null,null,null,null,null,null,null,null,null,null,null,null,null,{"$f":"Inledn.!G29","v":""}]
[null,"F"]
[null,null,null,null,null,null,null,null,null,null,null,null,null,null,null,null,null,null,null,{"$f":"Inledn.!B30","v":"Reserv UI 7"}]
[null,null,null,null,null,null,null,null,null,null,null,null,null,null,null,null,null,null,null,{"$f":"Inledn.!G30","v":""}]
[]
[null,"G",null,null,null,null,null,null,null,null,null,null,null,null,null,null,null,null,null,{"$f":"Inledn.!B31","v":"Reserv UI 8"}]
[null,null,null,null,null,null,null,null,null,null,null,null,null,null,null,null,null,null,null,{"$f":"Inledn.!G31","v":""}]
[]
[]
[null,"H",null,null,null,null,null,null,null,null,null,null,null,null,null,{"$f":"CONCATENATE(Inledn.!B6,\", \",Inledn.!B7)","v":", "},null,null,null,null,"ARBETSNUMMER",null,"RITNINGSNUMMER"]
[null,null,null,null,null,null,null,null,null,null,null,null,null,null,null,null,null,null,null,null,{"$f":"Inledn.!B11","v":"20-101"},null,{"$f":"CONCATENATE(U32,\"00\",X36)","v":"20-10100102"}]
[null,null,null,null,null,null,null,null,null,null,null,null,null,null,null,{"$f":"CONCATENATE(Inledn.!B8,\", \",Inledn.!B9)","v":", "}]
[]
[null,null,null,null,null,null,null,null,null,null,null,null,null,null,null,"KRETSSCHEMA DUC",null,null,null,null,"HANDLÄGGES AV",null,"RITAD AV","BLAD"]
[null,null,null,null,null,null,null,null,null,null,null,null,null,null,null,null,null,null,null,null,{"$f":"Inledn.!B13","v":0},null,"Kjell C",102]
[null,null,null,null,null,null,null,null,null,null,null,null,null,null,null,{"$f":"Inledn.!G5","v":"RELATIONSHANDLING"},null,null,null,null,"Datum",null,"REV.","FORTS.BL"]
[null,null,"NR.","ÄNDRING",{"$f":"'Ducbestyckning del1'!$E$38","v":20220511},"SIGN.","DATUM","010-330 80 00",null,"www.bastec.se",null,null,null,null,null,null,null,null,null,null,{"$f":"Inledn.!B10","v":"00:00:00"},null,{"$f":"Inledn.!B14","v":"SN "},103]

{"sheet":"Blad103","index":12,"n_rows":38,"n_cols":24,"rows_kept":38,"cut":false,"hidden":false,"merged":[[1,12,1,13],[2,1,5,1],[1,2,1,3],[1,4,1,5],[1,6,1,7],[1,8,1,9],[1,10,1,11],[1,14,1,15],[1,16,1,17],[1,18,1,19],[1,20,1,21],[1,22,1,23],[34,20,34,21],[35,20,35,21],[36,15,37,19],[36,20,36,21],[37,20,37,21],[34,15,35,19],[30,22,30,23],[31,20,33,21],[31,22,33,23],[32,15,33,19],[30,20,30,21],[6,1,9,1],[10,1,13,1],[14,1,17,1],[18,1,21,1],[22,1,25,1],[26,1,29,1],[30,1,37,1],[30,11,37,14],[30,15,31,19],[37,7,37,8],[37,9,37,10]]}
[]
[null,null,0,null,1,null,2,null,3,null,4,null,5,null,6,null,7,null,8,null,9,null,10]
[null,"A"]
[]
[null,null,null,null,null,null,null,null,null,null,null,null,null,null,null,null,null,null,null,null,{"$f":"Inledn.!B50","v":"Reserv DO 1"}]
[]
[null,"B"]
[null,null,null,null,null,null,null,null,null,null,null,null,null,null,null,null,null,null,null,null,{"$f":"Inledn.!B51","v":"Reserv DO 2"}]
[]
[]
[null,"C",null,null,null,null,null,null,null,null,null,null,null,null,null,null,null,null,null,null,{"$f":"Inledn.!B52","v":"Reserv DO 3"}]
[]
[]
[null,null,null,null,null,null,null,null,null,null,null,null,null,null,null,null,null,null,null,null,{"$f":"Inledn.!B53","v":"Reserv DO 4"}]
[null,"D"]
[]
[]
[]
[null,"E",null,null,null,null,null,null,null,null,null,null,null,null,null,null,null,null,null,{"$f":"Inledn.!B63","v":"Reserv AO 1"}]
[]
[]
[null,null,null,null,null,null,null,null,null,null,null,null,null,null,null,null,null,null,null,{"$f":"Inledn.!B64","v":"Reserv AO 2"}]
[null,"F"]
[]
[null,null,null,null,null,null,null,null,null,null,null,null,null,null,null,null,null,null,null,{"$f":"Inledn.!B65","v":"Reserv AO 3"}]
[]
[null,"G"]
[null,null,null,null,null,null,null,null,null,null,null,null,null,null,null,null,null,null,null,{"$f":"Inledn.!B66","v":"Reserv AO 4"}]
[]
[]
[null,"H",null,null,null,null,null,null,null,null,null,null,null,null,null,{"$f":"CONCATENATE(Inledn.!B6,\", \",Inledn.!B7)","v":", "},null,null,null,null,"ARBETSNUMMER",null,"RITNINGSNUMMER"]
[null,null,null,null,null,null,null,null,null,null,null,null,null,null,null,null,null,null,null,null,{"$f":"Inledn.!B11","v":"20-101"},null,{"$f":"CONCATENATE(U32,\"00\",X36)","v":"20-10100103"}]
[null,null,null,null,null,null,null,null,null,null,null,null,null,null,null,{"$f":"CONCATENATE(Inledn.!B8,\", \",Inledn.!B9)","v":", "}]
[]
[null,null,null,null,null,null,null,null,null,null,null,null,null,null,null,"KRETSSCHEMA DUC",null,null,null,null,"HANDLÄGGES AV",null,"RITAD AV","BLAD"]
[null,null,null,null,null,null,null,null,null,null,null,null,null,null,null,null,null,null,null,null,{"$f":"Inledn.!B13","v":0},null,"Kjell C",103]
[null,null,null,null,null,null,null,null,null,null,null,null,null,null,null,{"$f":"Inledn.!G5","v":"RELATIONSHANDLING"},null,null,null,null,"Datum",null,"REV.","FORTS.BL"]
[null,null,"NR.","ÄNDRING",{"$f":"'Ducbestyckning del1'!$E$38","v":20220511},"SIGN.","DATUM","010-330 80 00",null,"www.bastec.se",null,null,null,null,null,null,null,null,null,null,{"$f":"Inledn.!B10","v":"00:00:00"},null,{"$f":"Inledn.!B14","v":"SN "},104]

{"sheet":"Blad104","index":13,"n_rows":38,"n_cols":24,"rows_kept":38,"cut":false,"hidden":false,"merged":[[26,1,29,1],[6,1,9,1],[10,1,13,1],[14,1,17,1],[18,1,21,1],[22,1,25,1],[30,22,30,23],[31,20,33,21],[31,22,33,23],[32,15,33,19],[30,1,37,1],[30,11,37,14],[30,15,31,19],[30,20,30,21],[34,15,35,19],[37,7,37,8],[37,9,37,10],[34,20,34,21],[35,20,35,21],[36,15,37,19],[36,20,36,21],[37,20,37,21],[1,14,1,15],[1,16,1,17],[1,18,1,19],[1,20,1,21],[1,22,1,23],[1,12,1,13],[2,1,5,1],[1,2,1,3],[1,4,1,5],[1,6,1,7],[1,8,1,9],[1,10,1,11]]}
[]
[null,null,0,null,1,null,2,null,3,null,4,null,5,null,6,null,7,null,8,null,9,null,10]
[null,"A"]
[]
[]
[]
[null,"B"]
[]
[]
[]
[null,"C"]
[]
[]
[]
[null,"D"]
[]
[]
[]
[null,"E"]
[]
[]
[]
[null,"F"]
[]
[]
[]
[null,"G"]
[]
[]
[]
[null,"H",null,null,null,null,null,null,null,null,null,null,null,null,null,{"$f":"CONCATENATE(Inledn.!B6,\", \",Inledn.!B7)","v":", "},null,null,null,null,"ARBETSNUMMER",null,"RITNINGSNUMMER"]
[null,null,null,null,null,null,null,null,null,null,null,null,null,null,null,null,null,null,null,null,{"$f":"Inledn.!B11","v":"20-101"},null,{"$f":"CONCATENATE(U32,\"00\",X36)","v":"20-10100104"}]
[null,null,null,null,null,null,null,null,null,null,null,null,null,null,null,{"$f":"CONCATENATE(Inledn.!B8,\", \",Inledn.!B9)","v":", "}]
[]
[null,null,null,null,null,null,null,null,null,null,null,null,null,null,null,"KRETSSCHEMA DUC",null,null,null,null,"HANDLÄGGES AV",null,"RITAD AV","BLAD"]
[null,null,null,null,null,null,null,null,null,null,null,null,null,null,null,null,null,null,null,null,{"$f":"Inledn.!B13","v":0},null,"Kjell C",104]
[null,null,null,null,null,null,null,null,null,null,null,null,null,null,null,{"$f":"Inledn.!G5","v":"RELATIONSHANDLING"},null,null,null,null,"Datum",null,"REV.","FORTS.BL"]
[null,null,"NR.","ÄNDRING",{"$f":"'Ducbestyckning del1'!$E$38","v":20220511},"SIGN.","DATUM","010-330 80 00",null,"www.bastec.se",null,null,null,null,null,null,null,null,null,null,{"$f":"Inledn.!B10","v":"00:00:00"},null,{"$f":"Inledn.!B14","v":"SN "},105]

{"sheet":"Blad105","index":14,"n_rows":38,"n_cols":24,"rows_kept":38,"cut":false,"hidden":false,"merged":[[26,1,29,1],[6,1,9,1],[10,1,13,1],[14,1,17,1],[18,1,21,1],[22,1,25,1],[30,22,30,23],[31,20,33,21],[31,22,33,23],[32,15,33,19],[30,1,37,1],[30,11,37,14],[30,15,31,19],[30,20,30,21],[34,15,35,19],[37,7,37,8],[37,9,37,10],[34,20,34,21],[35,20,35,21],[36,15,37,19],[36,20,36,21],[37,20,37,21],[1,14,1,15],[1,16,1,17],[1,18,1,19],[1,20,1,21],[1,22,1,23],[1,12,1,13],[2,1,5,1],[1,2,1,3],[1,4,1,5],[1,6,1,7],[1,8,1,9],[1,10,1,11]]}
[]
[null,null,0,null,1,null,2,null,3,null,4,null,5,null,6,null,7,null,8,null,9,null,10]
[null,"A"]
[]
[]
[]
[null,"B",null,null,null,null,null,null,null,null,null,null,null,null,null,null,null,null,null,{"$f":"Inledn.!B32","v":"Reserv UI 9 (Option)"}]
[null,null,null,null,null,null,null,null,null,null,null,null,null,null,null,null,null,null,null,{"$f":"Inledn.!G32","v":""}]
[]
[null,null,null,null,null,null,null,null,null,null,null,null,null,null,null,null,null,null,null,{"$f":"Inledn.!B33","v":"Reserv UI 10 (Option)"}]
[null,"C",null,null,null,null,null,null,null,null,null,null,null,null,null,null,null,null,null,{"$f":"Inledn.!G33","v":""}]
[]
[null,null,null,null,null,null,null,null,null,null,null,null,null,null,null,null,null,null,null,{"$f":"Inledn.!B34","v":"Reserv UI 11 (Option)"}]
[null,null,null,null,null,null,null,null,null,null,null,null,null,null,null,null,null,null,null,{"$f":"Inledn.!G34","v":""}]
[null,"D"]
[null,null,null,null,null,null,null,null,null,null,null,null,null,null,null,null,null,null,null,{"$f":"Inledn.!B35","v":"Reserv UI 12 (Option)"}]
[null,null,null,null,null,null,null,null,null,null,null,null,null,null,null,null,null,null,null,{"$f":"Inledn.!G35","v":""}]
[]
[null,"E",null,null,null,null,null,null,null,null,null,null,null,null,null,null,null,null,null,{"$f":"Inledn.!B36","v":"Reserv UI 13 (Option)"}]
[null,null,null,null,null,null,null,null,null,null,null,null,null,null,null,null,null,null,null,{"$f":"Inledn.!G36","v":""}]
[]
[null,null,null,null,null,null,null,null,null,null,null,null,null,null,null,null,null,null,null,{"$f":"Inledn.!B37","v":"Reserv UI 14 (Option)"}]
[null,"F",null,null,null,null,null,null,null,null,null,null,null,null,null,null,null,null,null,{"$f":"Inledn.!G37","v":""}]
[]
[null,null,null,null,null,null,null,null,null,null,null,null,null,null,null,null,null,null,null,{"$f":"Inledn.!B38","v":"Reserv UI 15 (Option)"}]
[null,null,null,null,null,null,null,null,null,null,null,null,null,null,null,null,null,null,null,{"$f":"Inledn.!G38","v":""}]
[null,"G"]
[null,null,null,null,null,null,null,null,null,null,null,null,null,null,null,null,null,null,null,{"$f":"Inledn.!B39","v":"Reserv UI 16 (Option)"}]
[null,null,null,null,null,null,null,null,null,null,null,null,null,null,null,null,null,null,null,{"$f":"Inledn.!G39","v":""}]
[]
[null,"H",null,null,null,null,null,null,null,null,null,null,null,null,null,{"$f":"CONCATENATE(Inledn.!B6,\", \",Inledn.!B7)","v":", "},null,null,null,null,"ARBETSNUMMER",null,"RITNINGSNUMMER"]
[null,null,null,null,null,null,null,null,null,null,null,null,null,null,null,null,null,null,null,null,{"$f":"Inledn.!B11","v":"20-101"},null,{"$f":"CONCATENATE(U32,\"00\",X36)","v":"20-10100105"}]
[null,null,null,null,null,null,null,null,null,null,null,null,null,null,null,{"$f":"CONCATENATE(Inledn.!B8,\", \",Inledn.!B9)","v":", "}]
[]
[null,null,null,null,null,null,null,null,null,null,null,null,null,null,null,"KRETSSCHEMA DUC",null,null,null,null,"HANDLÄGGES AV",null,"RITAD AV","BLAD"]
[null,null,null,null,null,null,null,null,null,null,null,null,null,null,null,null,null,null,null,null,{"$f":"Inledn.!B13","v":0},null,"Kjell C",105]
[null,null,null,null,null,null,null,null,null,null,null,null,null,null,null,{"$f":"Inledn.!G5","v":"RELATIONSHANDLING"},null,null,null,null,"Datum",null,"REV.","FORTS.BL"]
[null,null,"NR.","ÄNDRING",{"$f":"'Ducbestyckning del1'!$E$38","v":20220511},"SIGN.","DATUM","010-330 80 00",null,"www.bastec.se",null,null,null,null,null,null,null,null,null,null,{"$f":"Inledn.!B10","v":"00:00:00"},null,{"$f":"Inledn.!B14","v":"SN "},106]

{"sheet":"Blad106","index":15,"n_rows":38,"n_cols":24,"rows_kept":38,"cut":false,"hidden":false,"merged":[[26,1,29,1],[6,1,9,1],[10,1,13,1],[14,1,17,1],[18,1,21,1],[22,1,25,1],[30,22,30,23],[31,20,33,21],[31,22,33,23],[32,15,33,19],[30,1,37,1],[30,11,37,14],[30,15,31,19],[30,20,30,21],[34,15,35,19],[37,7,37,8],[37,9,37,10],[34,20,34,21],[35,20,35,21],[36,15,37,19],[36,20,36,21],[37,20,37,21],[1,14,1,15],[1,16,1,17],[1,18,1,19],[1,20,1,21],[1,22,1,23],[1,12,1,13],[2,1,5,1],[1,2,1,3],[1,4,1,5],[1,6,1,7],[1,8,1,9],[1,10,1,11]]}
[]
[null,null,0,null,1,null,2,null,3,null,4,null,5,null,6,null,7,null,8,null,9,null,10]
[null,"A"]
[]
[null,null,null,null,null,null,null,null,null,null,null,null,null,null,null,null,null,null,{"$f":"Inledn.!B54","v":"Reserv DO 5 (Option)"}]
[]
[null,"B"]
[null,null,null,null,null,null,null,null,null,null,null,null,null,null,null,null,null,null,{"$f":"Inledn.!B55","v":"Reserv DO 6 (Option)"}]
[]
[]
[null,"C",null,null,null,null,null,null,null,null,null,null,null,null,null,null,null,null,{"$f":"Inledn.!B56","v":"Reserv DO 7 (Option)"}]
[]
[]
[null,null,null,null,null,null,null,null,null,null,null,null,null,null,null,null,null,null,{"$f":"Inledn.!B57","v":"Reserv DO 8 (Option)"}]
[null,"D"]
[]
[]
[]
[null,"E",null,null,null,null,null,null,null,null,null,null,null,null,null,null,null,{"$f":"Inledn.!B67","v":"Reserv AO 5 (Option)"}]
[]
[]
[null,null,null,null,null,null,null,null,null,null,null,null,null,null,null,null,null,{"$f":"Inledn.!B68","v":"Reserv AO 6 (Option)"}]
[null,"F"]
[]
[null,null,null,null,null,null,null,null,null,null,null,null,null,null,null,null,null,{"$f":"Inledn.!B69","v":"Reserv AO 7 (Option)"}]
[]
[null,"G"]
[null,null,null,null,null,null,null,null,null,null,null,null,null,null,null,null,null,{"$f":"Inledn.!B70","v":"Reserv AO 8 (Option)"}]
[]
[]
[null,"H",null,null,null,null,null,null,null,null,null,null,null,null,null,{"$f":"CONCATENATE(Inledn.!B6,\", \",Inledn.!B7)","v":", "},null,null,null,null,"ARBETSNUMMER",null,"RITNINGSNUMMER"]
[null,null,null,null,null,null,null,null,null,null,null,null,null,null,null,null,null,null,null,null,{"$f":"Inledn.!B11","v":"20-101"},null,{"$f":"CONCATENATE(U32,\"00\",X36)","v":"20-10100106"}]
[null,null,null,null,null,null,null,null,null,null,null,null,null,null,null,{"$f":"CONCATENATE(Inledn.!B8,\", \",Inledn.!B9)","v":", "}]
[]
[null,null,null,null,null,null,null,null,null,null,null,null,null,null,null,"KRETSSCHEMA DUC",null,null,null,null,"HANDLÄGGES AV",null,"RITAD AV","BLAD"]
[null,null,null,null,null,null,null,null,null,null,null,null,null,null,null,null,null,null,null,null,{"$f":"Inledn.!B13","v":0},null,"Kjell C",106]
[null,null,null,null,null,null,null,null,null,null,null,null,null,null,null,{"$f":"Inledn.!G5","v":"RELATIONSHANDLING"},null,null,null,null,"Datum",null,"REV.","FORTS.BL"]
[null,null,"NR.","ÄNDRING",{"$f":"'Ducbestyckning del1'!$E$38","v":20220511},"SIGN.","DATUM","010-330 80 00",null,"www.bastec.se",null,null,null,null,null,null,null,null,null,null,{"$f":"Inledn.!B10","v":"00:00:00"},null,{"$f":"Inledn.!B14","v":"SN "},107]

{"sheet":"Blad107","index":16,"n_rows":38,"n_cols":24,"rows_kept":38,"cut":false,"hidden":false,"merged":[[30,1,37,1],[30,11,37,14],[30,15,31,19],[30,20,30,21],[30,22,30,23],[31,20,33,21],[31,22,33,23],[32,15,33,19],[34,15,35,19],[34,20,34,21],[35,20,35,21],[36,15,37,19],[36,20,36,21],[37,7,37,8],[37,9,37,10],[37,20,37,21],[26,1,29,1],[1,14,1,15],[1,16,1,17],[1,18,1,19],[1,20,1,21],[6,1,9,1],[10,1,13,1],[14,1,17,1],[18,1,21,1],[22,1,25,1],[1,22,1,23],[2,1,5,1],[1,2,1,3],[1,4,1,5],[1,6,1,7],[1,8,1,9],[1,10,1,11],[1,12,1,13]]}
[]
[null,null,0,null,1,null,2,null,3,null,4,null,5,null,6,null,7,null,8,null,9,null,10]
[null,"A"]
[]
[]
[]
[null,"B"]
[]
[]
[]
[null,"C"]
[]
[]
[]
[null,"D"]
[]
[]
[]
[null,"E"]
[]
[]
[]
[null,"F"]
[]
[]
[]
[null,"G"]
[]
[]
[]
[null,"H",null,null,null,null,null,null,null,null,null,null,null,null,null,{"$f":"CONCATENATE(Inledn.!B6,\", \",Inledn.!B7)","v":", "},null,null,null,null,"ARBETSNUMMER",null,"RITNINGSNUMMER"]
[null,null,null,null,null,null,null,null,null,null,null,null,null,null,null,null,null,null,null,null,{"$f":"Inledn.!B11","v":"20-101"},null,{"$f":"CONCATENATE(U32,\"00\",X36)","v":"20-10100107"}]
[null,null,null,null,null,null,null,null,null,null,null,null,null,null,null,{"$f":"CONCATENATE(Inledn.!B8,\", \",Inledn.!B9)","v":", "}]
[]
[null,null,null,null,null,null,null,null,null,null,null,null,null,null,null,"KRETSSCHEMA DUC",null,null,null,null,"HANDLÄGGES AV",null,"RITAD AV","BLAD"]
[null,null,null,null,null,null,null,null,null,null,null,null,null,null,null,null,null,null,null,null,{"$f":"Inledn.!B13","v":0},null,"Kjell C",107]
[null,null,null,null,null,null,null,null,null,null,null,null,null,null,null,{"$f":"Inledn.!G5","v":"RELATIONSHANDLING"},null,null,null,null,"Datum",null,"REV.","FORTS.BL"]
[null,null,"NR.","ÄNDRING",{"$f":"'Ducbestyckning del1'!$E$38","v":20220511},"SIGN.","DATUM","010-330 80 00",null,"www.bastec.se",null,null,null,null,null,null,null,null,null,null,{"$f":"Inledn.!B10","v":"00:00:00"},null,{"$f":"Inledn.!B14","v":"SN "},108]

{"sheet":"Blad108","index":17,"n_rows":38,"n_cols":24,"rows_kept":38,"cut":false,"hidden":false,"merged":[[30,22,30,23],[31,20,33,21],[31,22,33,23],[32,15,33,19],[34,15,35,19],[34,20,34,21],[35,20,35,21],[26,1,29,1],[30,1,37,1],[30,11,37,14],[30,15,31,19],[30,20,30,21],[36,15,37,19],[36,20,36,21],[37,7,37,8],[37,9,37,10],[37,20,37,21],[10,1,13,1],[14,1,17,1],[18,1,21,1],[22,1,25,1],[1,14,1,15],[6,1,9,1],[1,16,1,17],[1,18,1,19],[1,20,1,21],[1,22,1,23],[2,1,5,1],[1,2,1,3],[1,4,1,5],[1,6,1,7],[1,8,1,9],[1,10,1,11],[1,12,1,13]]}
[]
[null,null,0,null,1,null,2,null,3,null,4,null,5,null,6,null,7,null,8,null,9,null,10]
[null,"A"]
[]
[]
[null,null,null,null,null,null,null,null,null,null,null,null,null,null,null,null,null,null,null,{"$f":"Inledn.!B40","v":"Reserv UI 17 (Option)"}]
[null,"B",null,null,null,null,null,null,null,null,null,null,null,null,null,null,null,null,null,{"$f":"Inledn.!G40","v":""}]
[]
[null,null,null,null,null,null,null,null,null,null,null,null,null,null,null,null,null,null,null,{"$f":"Inledn.!B41","v":"Reserv UI 18 (Option)"}]
[null,null,null,null,null,null,null,null,null,null,null,null,null,null,null,null,null,null,null,{"$f":"Inledn.!G41","v":""}]
[null,"C"]
[null,null,null,null,null,null,null,null,null,null,null,null,null,null,null,null,null,null,null,{"$f":"Inledn.!B42","v":"Reserv UI 19 (Option)"}]
[null,null,null,null,null,null,null,null,null,null,null,null,null,null,null,null,null,null,null,{"$f":"Inledn.!G42","v":""}]
[]
[null,"D",null,null,null,null,null,null,null,null,null,null,null,null,null,null,null,null,null,{"$f":"Inledn.!B43","v":"Reserv UI 20 (Option)"}]
[null,null,null,null,null,null,null,null,null,null,null,null,null,null,null,null,null,null,null,{"$f":"Inledn.!G43","v":""}]
[]
[null,null,null,null,null,null,null,null,null,null,null,null,null,null,null,null,null,null,null,{"$f":"Inledn.!B44","v":"Reserv UI 21 (Option)"}]
[null,"E",null,null,null,null,null,null,null,null,null,null,null,null,null,null,null,null,null,{"$f":"Inledn.!G44","v":""}]
[]
[null,null,null,null,null,null,null,null,null,null,null,null,null,null,null,null,null,null,null,{"$f":"Inledn.!B45","v":"Reserv UI 22 (Option)"}]
[null,null,null,null,null,null,null,null,null,null,null,null,null,null,null,null,null,null,null,{"$f":"Inledn.!G45","v":""}]
[null,"F"]
[null,null,null,null,null,null,null,null,null,null,null,null,null,null,null,null,null,null,null,{"$f":"Inledn.!B46","v":"Reserv UI 23 (Option)"}]
[null,null,null,null,null,null,null,null,null,null,null,null,null,null,null,null,null,null,null,{"$f":"Inledn.!G46","v":""}]
[]
[null,"G",null,null,null,null,null,null,null,null,null,null,null,null,null,null,null,null,null,{"$f":"Inledn.!B47","v":"Reserv UI 24 (Option)"}]
[null,null,null,null,null,null,null,null,null,null,null,null,null,null,null,null,null,null,null,{"$f":"Inledn.!G47","v":""}]
[]
[]
[null,"H",null,null,null,null,null,null,null,null,null,null,null,null,null,{"$f":"CONCATENATE(Inledn.!B6,\", \",Inledn.!B7)","v":", "},null,null,null,null,"ARBETSNUMMER",null,"RITNINGSNUMMER"]
[null,null,null,null,null,null,null,null,null,null,null,null,null,null,null,null,null,null,null,null,{"$f":"Inledn.!B11","v":"20-101"},null,{"$f":"CONCATENATE(U32,\"00\",X36)","v":"20-10100108"}]
[null,null,null,null,null,null,null,null,null,null,null,null,null,null,null,{"$f":"CONCATENATE(Inledn.!B8,\", \",Inledn.!B9)","v":", "}]
[]
[null,null,null,null,null,null,null,null,null,null,null,null,null,null,null,"KRETSSCHEMA DUC",null,null,null,null,"HANDLÄGGES AV",null,"RITAD AV","BLAD"]
[null,null,null,null,null,null,null,null,null,null,null,null,null,null,null,null,null,null,null,null,{"$f":"Inledn.!B13","v":0},null,"Kjell C",108]
[null,null,null,null,null,null,null,null,null,null,null,null,null,null,null,{"$f":"Inledn.!G5","v":"RELATIONSHANDLING"},null,null,null,null,"Datum",null,"REV.","FORTS.BL"]
[null,null,"NR.","ÄNDRING",{"$f":"'Ducbestyckning del1'!$E$38","v":20220511},"SIGN.","DATUM","010-330 80 00",null,"www.bastec.se",null,null,null,null,null,null,null,null,null,null,{"$f":"Inledn.!B10","v":"00:00:00"},null,{"$f":"Inledn.!B14","v":"SN "},109]

{"sheet":"Blad109","index":18,"n_rows":38,"n_cols":24,"rows_kept":38,"cut":false,"hidden":false,"merged":[[30,1,37,1],[30,11,37,14],[30,15,31,19],[30,20,30,21],[30,22,30,23],[31,20,33,21],[31,22,33,23],[32,15,33,19],[34,15,35,19],[34,20,34,21],[35,20,35,21],[36,15,37,19],[36,20,36,21],[37,7,37,8],[37,9,37,10],[37,20,37,21],[26,1,29,1],[1,14,1,15],[1,16,1,17],[1,18,1,19],[1,20,1,21],[6,1,9,1],[10,1,13,1],[14,1,17,1],[18,1,21,1],[22,1,25,1],[1,22,1,23],[2,1,5,1],[1,2,1,3],[1,4,1,5],[1,6,1,7],[1,8,1,9],[1,10,1,11],[1,12,1,13]]}
[]
[null,null,0,null,1,null,2,null,3,null,4,null,5,null,6,null,7,null,8,null,9,null,10]
[null,"A"]
[]
[null,null,null,null,null,null,null,null,null,null,null,null,null,null,null,null,null,{"$f":"Inledn.!B58","v":"Reserv DO 9 (Option)"}]
[]
[null,"B"]
[null,null,null,null,null,null,null,null,null,null,null,null,null,null,null,null,null,{"$f":"Inledn.!B59","v":"Reserv DO 10 (Option)"}]
[]
[]
[null,"C",null,null,null,null,null,null,null,null,null,null,null,null,null,null,null,{"$f":"Inledn.!B60","v":"Reserv DO 11 (Option)"}]
[]
[]
[null,null,null,null,null,null,null,null,null,null,null,null,null,null,null,null,null,{"$f":"Inledn.!B61","v":"Reserv DO 12 (Option)"}]
[null,"D"]
[]
[]
[]
[null,"E",null,null,null,null,null,null,null,null,null,null,null,null,null,null,null,{"$f":"Inledn.!B71","v":"Reserv AO 9 (Option)"}]
[]
[]
[null,null,null,null,null,null,null,null,null,null,null,null,null,null,null,null,null,{"$f":"Inledn.!B72","v":"Reserv AO 10 (Option)"}]
[null,"F"]
[]
[null,null,null,null,null,null,null,null,null,null,null,null,null,null,null,null,null,{"$f":"Inledn.!B73","v":"Reserv AO 11 (Option)"}]
[]
[null,"G"]
[null,null,null,null,null,null,null,null,null,null,null,null,null,null,null,null,null,{"$f":"Inledn.!B74","v":"Reserv AO 12 (Option)"}]
[]
[]
[null,"H",null,null,null,null,null,null,null,null,null,null,null,null,null,{"$f":"CONCATENATE(Inledn.!B6,\", \",Inledn.!B7)","v":", "},null,null,null,null,"ARBETSNUMMER",null,"RITNINGSNUMMER"]
[null,null,null,null,null,null,null,null,null,null,null,null,null,null,null,null,null,null,null,null,{"$f":"Inledn.!B11","v":"20-101"},null,{"$f":"CONCATENATE(U32,\"00\",X36)","v":"20-10100109"}]
[null,null,null,null,null,null,null,null,null,null,null,null,null,null,null,{"$f":"CONCATENATE(Inledn.!B8,\", \",Inledn.!B9)","v":", "}]
[]
[null,null,null,null,null,null,null,null,null,null,null,null,null,null,null,"KRETSSCHEMA DUC",null,null,null,null,"HANDLÄGGES AV",null,"RITAD AV","BLAD"]
[null,null,null,null,null,null,null,null,null,null,null,null,null,null,null,null,null,null,null,null,{"$f":"Inledn.!B13","v":0},null,"Kjell C",109]
[null,null,null,null,null,null,null,null,null,null,null,null,null,null,null,{"$f":"Inledn.!G5","v":"RELATIONSHANDLING"},null,null,null,null,"Datum",null,"REV.","FORTS.BL"]
[null,null,"NR.","ÄNDRING",{"$f":"'Ducbestyckning del1'!$E$38","v":20220511},"SIGN.","DATUM","010-330 80 00",null,"www.bastec.se",null,null,null,null,null,null,null,null,null,null,{"$f":"Inledn.!B10","v":"00:00:00"},null,{"$f":"Inledn.!B14","v":"SN "},201]

{"sheet":"Blad201","index":19,"n_rows":38,"n_cols":24,"rows_kept":38,"cut":false,"hidden":false,"merged":[[1,12,1,13],[2,1,5,1],[1,2,1,3],[1,4,1,5],[1,6,1,7],[1,8,1,9],[1,10,1,11],[1,14,1,15],[1,16,1,17],[1,18,1,19],[1,20,1,21],[1,22,1,23],[34,20,34,21],[35,20,35,21],[36,15,37,19],[36,20,36,21],[37,20,37,21],[34,15,35,19],[30,22,30,23],[31,20,33,21],[31,22,33,23],[32,15,33,19],[30,20,30,21],[6,1,9,1],[10,1,13,1],[14,1,17,1],[18,1,21,1],[22,1,25,1],[26,1,29,1],[30,1,37,1],[30,11,37,14],[30,15,31,19],[37,7,37,8],[37,9,37,10]]}
[]
[null,null,0,null,1,null,2,null,3,null,4,null,5,null,6,null,7,null,8,null,9,null,10]
[null,"A"]
[null,null,null,null,null,null,null,null,null,null,null,null,null,null,null,null,{"$f":"Inledn.!F50","v":101},null,null,{"$f":"Inledn.!B50","v":"Reserv DO 1"}]
[null,null,null,null,null,null,null,null,null,null,null,null,null,null,null,null,null,null,null,{"$f":"CONCATENATE(\"(POT.FRI KONT) SE BL.\",\" \",Blad22!X36)","v":"(POT.FRI KONT) SE BL. 22"}]
[null,null,null,null,null,{"$f":"Inledn.!F17","v":"INK"}]
[null,"B",null,null,null,null,null,null,null,null,null,null,null,null,null,null,{"$f":"Inledn.!F51","v":103},null,null,{"$f":"Inledn.!B51","v":"Reserv DO 2"}]
[null,null,null,null,null,null,null,null,null,null,null,null,null,null,null,null,null,null,null,{"$f":"CONCATENATE(\"(POT.FRI KONT) SE BL.\",\" \",Blad22!X36)","v":"(POT.FRI KONT) SE BL. 22"}]
[]
[null,null,null,null,null,null,null,null,null,{"$f":"Inledn.!B19","v":"MATNING 1"},null,null,null,null,null,null,{"$f":"Inledn.!F52","v":105},null,null,{"$f":"Inledn.!B52","v":"Reserv DO 3"}]
[null,"C",null,null,null,{"$f":"Inledn.!F19","v":1},null,null,null,{"$f":"Blad4!S17","v":"MATNING 230 VAC"},null,null,null,null,null,null,null,null,null,{"$f":"CONCATENATE(\"(POT.FRI KONT) SE BL.\",\" \",Blad22!X36)","v":"(POT.FRI KONT) SE BL. 22"}]
[]
[null,null,null,null,null,null,null,null,null,{"$f":"Inledn.!B20","v":"MATNING 2"},null,null,null,null,null,null,{"$f":"Inledn.!F53","v":107},null,null,{"$f":"Inledn.!B53","v":"Reserv DO 4"}]
[null,null,null,null,null,{"$f":"Inledn.!F20","v":2},null,null,null,{"$f":"Blad4!S21","v":"MATNING 230 VAC"},null,null,null,null,null,null,null,null,null,{"$f":"CONCATENATE(\"(POT.FRI KONT) SE BL.\",\" \",Blad22!X36)","v":"(POT.FRI KONT) SE BL. 22"}]
[null,"D"]
[null,null,null,null,null,null,null,null,null,{"$f":"Inledn.!B21","v":"MATNING 3"},null,null,null,null,null,null,{"$f":"Inledn.!F54","v":109},null,null,{"$f":"Inledn.!B54","v":"Reserv DO 5 (Option)"}]
[null,null,null,null,null,{"$f":"Inledn.!F21","v":3},null,null,null,{"$f":"Blad4!S25","v":"MATNING 230 VAC"},null,null,null,null,null,null,null,null,null,{"$f":"CONCATENATE(\"(POT.FRI KONT) SE BL.\",\" \",Blad22!X36)","v":"(POT.FRI KONT) SE BL. 22"}]
[]
[null,"E",null,null,null,null,null,null,null,{"$f":"Inledn.!B22","v":"MATNING 4"},null,null,null,null,null,null,{"$f":"Inledn.!F55","v":111},null,null,{"$f":"Inledn.!B55","v":"Reserv DO 6 (Option)"}]
[null,null,null,null,null,{"$f":"Inledn.!F22","v":4},null,null,null,{"$f":"Blad4!S29","v":"MATNING 230 VAC"},null,null,null,null,null,null,null,null,null,{"$f":"CONCATENATE(\"(POT.FRI KONT) SE BL.\",\" \",Blad22!X36)","v":"(POT.FRI KONT) SE BL. 22"}]
[]
[null,null,null,null,null,null,null,null,null,null,null,null,null,null,null,null,{"$f":"Inledn.!F56","v":113},null,null,{"$f":"Inledn.!B56","v":"Reserv DO 7 (Option)"}]
[null,"F",null,null,null,null,"Reservplint",null,null,null,null,null,null,null,null,null,null,null,null,{"$f":"CONCATENATE(\"(POT.FRI KONT) SE BL.\",\" \",Blad22!X36)","v":"(POT.FRI KONT) SE BL. 22"}]
[]
[null,null,null,null,null,null,null,null,null,null,null,null,null,null,null,null,{"$f":"Inledn.!F57","v":115},null,null,{"$f":"Inledn.!B57","v":"Reserv DO 8 (Option)"}]
[null,null,null,null,null,null,null,null,null,null,null,null,null,null,null,null,null,null,null,{"$f":"CONCATENATE(\"(POT.FRI KONT) SE BL.\",\" \",Blad22!X36)","v":"(POT.FRI KONT) SE BL. 22"}]
[null,"G"]
[]
[]
[]
[null,"H",null,null,null,null,null,null,null,null,null,null,null,null,null,{"$f":"CONCATENATE(Inledn.!B6,\", \",Inledn.!B7)","v":", "},null,null,null,null,"ARBETSNUMMER",null,"RITNINGSNUMMER"]
[null,null,null,null,null,null,null,null,null,null,null,null,null,null,null,null,null,null,null,null,{"$f":"Inledn.!B11","v":"20-101"},null,{"$f":"CONCATENATE(U32,\"00\",X36)","v":"20-10100201"}]
[null,null,null,null,null,null,null,null,null,null,null,null,null,null,null,{"$f":"CONCATENATE(Inledn.!B8,\", \",Inledn.!B9)","v":", "}]
[]
[null,null,null,null,null,null,null,null,null,null,null,null,null,null,null,"YTTRE FÖRBINDNINGSSCHEMA",null,null,null,null,"HANDLÄGGES AV",null,"RITAD AV","BLAD"]
[null,null,null,null,null,null,null,null,null,null,null,null,null,null,null,null,null,null,null,null,{"$f":"Inledn.!B13","v":0},null,"Kjell C",201]
[null,null,null,null,null,null,null,null,null,null,null,null,null,null,null,{"$f":"Inledn.!G5","v":"RELATIONSHANDLING"},null,null,null,null,"Datum",null,"REV.","FORTS.BL"]
[null,null,"NR.","ÄNDRING",{"$f":"'Ducbestyckning del1'!$E$38","v":20220511},"SIGN.","DATUM","010-330 80 00",null,"www.bastec.se",null,null,null,null,null,null,null,null,null,null,{"$f":"Inledn.!B10","v":"00:00:00"},null,{"$f":"Inledn.!B14","v":"SN "},202]

{"sheet":"Blad202","index":20,"n_rows":38,"n_cols":24,"rows_kept":38,"cut":false,"hidden":false,"merged":[[1,12,1,13],[2,1,5,1],[1,2,1,3],[1,4,1,5],[1,6,1,7],[1,8,1,9],[1,10,1,11],[1,14,1,15],[1,16,1,17],[1,18,1,19],[1,20,1,21],[1,22,1,23],[34,20,34,21],[35,20,35,21],[36,15,37,19],[36,20,36,21],[37,20,37,21],[34,15,35,19],[30,22,30,23],[31,20,33,21],[31,22,33,23],[32,15,33,19],[30,20,30,21],[6,1,9,1],[10,1,13,1],[14,1,17,1],[18,1,21,1],[22,1,25,1],[26,1,29,1],[30,1,37,1],[30,11,37,14],[30,15,31,19],[37,7,37,8],[37,9,37,10]]}
[]
[null,null,0,null,1,null,2,null,3,null,4,null,5,null,6,null,7,null,8,null,9,null,10]
[null,"A"]
[]
[]
[null,null,null,null,null,{"$f":"Inledn.!F24","v":301},null,null,null,{"$f":"Inledn.!B24","v":"Reserv UI 1"},null,null,null,null,null,null,{"$f":"Inledn.!F63","v":329},null,null,null,{"$f":"Inledn.!B63","v":"Reserv AO 1"}]
[null,"B",null,null,null,null,null,null,null,{"$f":"CONCATENATE(Inledn.!G24,\" SE BL.102\")","v":" SE BL.102"},null,null,null,null,null,null,null,null,null,null,"SE BL. 103"]
[]
[null,null,null,null,null,{"$f":"Inledn.!F25","v":302},null,null,null,{"$f":"Inledn.!B25","v":"Reserv UI 2"},null,null,null,null,null,null,{"$f":"Inledn.!F64","v":330},null,null,null,{"$f":"Inledn.!B64","v":"Reserv AO 2"}]
[null,null,null,null,null,null,null,null,null,{"$f":"CONCATENATE(Inledn.!G25,\" SE BL.102\")","v":" SE BL.102"},null,null,null,null,null,null,null,null,null,null,"SE BL. 103"]
[null,"C"]
[null,null,null,null,null,{"$f":"Inledn.!F26","v":303},null,null,null,{"$f":"Inledn.!B26","v":"Reserv UI 3"},null,null,null,null,null,null,{"$f":"Inledn.!F65","v":331},null,null,null,{"$f":"Inledn.!B65","v":"Reserv AO 3"}]
[null,null,null,null,null,null,null,null,null,{"$f":"CONCATENATE(Inledn.!G26,\" SE BL.102\")","v":" SE BL.102"},null,null,null,null,null,null,null,null,null,null,"SE BL. 103"]
[]
[null,"D",null,null,null,{"$f":"Inledn.!F27","v":304},null,null,null,{"$f":"Inledn.!B27","v":"Reserv UI 4"},null,null,null,null,null,null,{"$f":"Inledn.!F66","v":332},null,null,null,{"$f":"Inledn.!B66","v":"Reserv AO 4"}]
[null,null,null,null,null,null,null,null,null,{"$f":"CONCATENATE(Inledn.!G27,\" SE BL.102\")","v":" SE BL.102"},null,null,null,null,null,null,null,null,null,null,"SE BL. 103"]
[]
[null,null,null,null,null,{"$f":"Inledn.!F28","v":305},null,null,null,{"$f":"Inledn.!B28","v":"Reserv UI 5"},null,null,null,null,null,null,{"$f":"Inledn.!F32","v":313},null,null,null,{"$f":"Inledn.!B32","v":"Reserv UI 9 (Option)"}]
[null,"E",null,null,null,null,null,null,null,{"$f":"CONCATENATE(Inledn.!G28,\" SE BL.102\")","v":" SE BL.102"},null,null,null,null,null,null,null,null,null,null,{"$f":"CONCATENATE(Inledn.!G32,\" SE BL.105\")","v":" SE BL.105"}]
[]
[null,null,null,null,null,{"$f":"Inledn.!F29","v":306},null,null,null,{"$f":"Inledn.!B29","v":"Reserv UI 6"},null,null,null,null,null,null,{"$f":"Inledn.!F33","v":314},null,null,null,{"$f":"Inledn.!B33","v":"Reserv UI 10 (Option)"}]
[null,null,null,null,null,null,null,null,null,{"$f":"CONCATENATE(Inledn.!G29,\" SE BL.102\")","v":" SE BL.102"},null,null,null,null,null,null,null,null,null,null,{"$f":"CONCATENATE(Inledn.!G33,\" SE BL.105\")","v":" SE BL.105"}]
[null,"F"]
[null,null,null,null,null,{"$f":"Inledn.!F30","v":307},null,null,null,{"$f":"Inledn.!B30","v":"Reserv UI 7"},null,null,null,null,null,null,{"$f":"Inledn.!F34","v":315},null,null,null,{"$f":"Inledn.!B34","v":"Reserv UI 11 (Option)"}]
[null,null,null,null,null,null,null,null,null,{"$f":"CONCATENATE(Inledn.!G30,\" SE BL.102\")","v":" SE BL.102"},null,null,null,null,null,null,null,null,null,null,{"$f":"CONCATENATE(Inledn.!G34,\" SE BL.105\")","v":" SE BL.105"}]
[]
[null,"G",null,null,null,{"$f":"Inledn.!F31","v":308},null,null,null,{"$f":"Inledn.!B31","v":"Reserv UI 8"},null,null,null,null,null,null,{"$f":"Inledn.!F35","v":316},null,null,null,{"$f":"Inledn.!B35","v":"Reserv UI 12 (Option)"}]
[null,null,null,null,null,null,null,null,null,{"$f":"CONCATENATE(Inledn.!G31,\" SE BL.102\")","v":" SE BL.102"},null,null,null,null,null,null,null,null,null,null,{"$f":"CONCATENATE(Inledn.!G35,\" SE BL.105\")","v":" SE BL.105"}]
[]
[]
[null,"H",null,null,null,null,null,null,null,null,null,null,null,null,null,{"$f":"CONCATENATE(Inledn.!B6,\", \",Inledn.!B7)","v":", "},null,null,null,null,"ARBETSNUMMER",null,"RITNINGSNUMMER"]
[null,null,null,null,null,null,null,null,null,null,null,null,null,null,null,null,null,null,null,null,{"$f":"Inledn.!B11","v":"20-101"},null,{"$f":"CONCATENATE(U32,\"00\",X36)","v":"20-10100202"}]
[null,null,null,null,null,null,null,null,null,null,null,null,null,null,null,{"$f":"CONCATENATE(Inledn.!B8,\", \",Inledn.!B9)","v":", "}]
[]
[null,null,null,null,null,null,null,null,null,null,null,null,null,null,null,"YTTRE FÖRBINDNINGSSCHEMA",null,null,null,null,"HANDLÄGGES AV",null,"RITAD AV","BLAD"]
[null,null,null,null,null,null,null,null,null,null,null,null,null,null,null,null,null,null,null,null,{"$f":"Inledn.!B13","v":0},null,"Kjell C",202]
[null,null,null,null,null,null,null,null,null,null,null,null,null,null,null,{"$f":"Inledn.!G5","v":"RELATIONSHANDLING"},null,null,null,null,"Datum",null,"REV.","FORTS.BL"]
[null,null,"NR.","ÄNDRING",{"$f":"'Ducbestyckning del1'!$E$38","v":20220511},"SIGN.","DATUM","010-330 80 00",null,"www.bastec.se",null,null,null,null,null,null,null,null,null,null,{"$f":"Inledn.!B10","v":"00:00:00"},null,{"$f":"Inledn.!B14","v":"SN "},203]

{"sheet":"Blad203","index":21,"n_rows":38,"n_cols":24,"rows_kept":38,"cut":false,"hidden":false,"merged":[[30,1,37,1],[30,11,37,14],[30,15,31,19],[30,20,30,21],[30,22,30,23],[31,20,33,21],[31,22,33,23],[32,15,33,19],[34,15,35,19],[34,20,34,21],[35,20,35,21],[36,15,37,19],[36,20,36,21],[37,7,37,8],[37,9,37,10],[37,20,37,21],[26,1,29,1],[1,14,1,15],[1,16,1,17],[1,18,1,19],[1,20,1,21],[6,1,9,1],[10,1,13,1],[14,1,17,1],[18,1,21,1],[22,1,25,1],[1,22,1,23],[2,1,5,1],[1,2,1,3],[1,4,1,5],[1,6,1,7],[1,8,1,9],[1,10,1,11],[1,12,1,13]]}
[]
[null,null,0,null,1,null,2,null,3,null,4,null,5,null,6,null,7,null,8,null,9,null,10]
[null,"A"]
[]
[]
[null,null,null,null,null,{"$f":"Inledn.!F36","v":317},null,null,null,{"$f":"Inledn.!B36","v":"Reserv UI 13 (Option)"},null,null,null,null,null,null,{"$f":"Inledn.!F40","v":321},null,null,null,{"$f":"Inledn.!B40","v":"Reserv UI 17 (Option)"}]
[null,"B",null,null,null,null,null,null,null,{"$f":"CONCATENATE(Inledn.!G36,\" SE BL.105\")","v":" SE BL.105"},null,null,null,null,null,null,null,null,null,null,{"$f":"CONCATENATE(Inledn.!G40,\" SE BL.108\")","v":" SE BL.108"}]
[]
[null,null,null,null,null,{"$f":"Inledn.!F37","v":318},null,null,null,{"$f":"Inledn.!B37","v":"Reserv UI 14 (Option)"},null,null,null,null,null,null,{"$f":"Inledn.!F41","v":322},null,null,null,{"$f":"Inledn.!B41","v":"Reserv UI 18 (Option)"}]
[null,null,null,null,null,null,null,null,null,{"$f":"CONCATENATE(Inledn.!G37,\" SE BL.105\")","v":" SE BL.105"},null,null,null,null,null,null,null,null,null,null,{"$f":"CONCATENATE(Inledn.!G41,\" SE BL.108\")","v":" SE BL.108"}]
[null,"C"]
[null,null,null,null,null,{"$f":"Inledn.!F38","v":319},null,null,null,{"$f":"Inledn.!B38","v":"Reserv UI 15 (Option)"},null,null,null,null,null,null,{"$f":"Inledn.!F42","v":323},null,null,null,{"$f":"Inledn.!B42","v":"Reserv UI 19 (Option)"}]
[null,null,null,null,null,null,null,null,null,{"$f":"CONCATENATE(Inledn.!G38,\" SE BL.105\")","v":" SE BL.105"},null,null,null,null,null,null,null,null,null,null,{"$f":"CONCATENATE(Inledn.!G42,\" SE BL.108\")","v":" SE BL.108"}]
[]
[null,"D",null,null,null,{"$f":"Inledn.!F39","v":320},null,null,null,{"$f":"Inledn.!B39","v":"Reserv UI 16 (Option)"},null,null,null,null,null,null,{"$f":"Inledn.!F43","v":324},null,null,null,{"$f":"Inledn.!B43","v":"Reserv UI 20 (Option)"}]
[null,null,null,null,null,null,null,null,null,{"$f":"CONCATENATE(Inledn.!G39,\" SE BL.105\")","v":" SE BL.105"},null,null,null,null,null,null,null,null,null,null,{"$f":"CONCATENATE(Inledn.!G43,\" SE BL.108\")","v":" SE BL.108"}]
[]
[null,null,null,null,null,null,null,null,null,null,null,null,null,null,null,null,{"$f":"Inledn.!F44","v":325},null,null,null,{"$f":"Inledn.!B44","v":"Reserv UI 21 (Option)"}]
[null,"E",null,null,null,{"$f":"Inledn.!F67","v":333},null,null,null,{"$f":"Inledn.!B67","v":"Reserv AO 5 (Option)"},null,null,null,null,null,null,null,null,null,null,{"$f":"CONCATENATE(Inledn.!G44,\" SE BL.108\")","v":" SE BL.108"}]
[null,null,null,null,null,null,null,null,null,"SE BL.109"]
[null,null,null,null,null,null,null,null,null,null,null,null,null,null,null,null,{"$f":"Inledn.!F45","v":326},null,null,null,{"$f":"Inledn.!B45","v":"Reserv UI 22 (Option)"}]
[null,null,null,null,null,{"$f":"Inledn.!F68","v":334},null,null,null,{"$f":"Inledn.!B68","v":"Reserv AO 6 (Option)"},null,null,null,null,null,null,null,null,null,null,{"$f":"CONCATENATE(Inledn.!G45,\" SE BL.108\")","v":" SE BL.108"}]
[null,"F",null,null,null,null,null,null,null,"SE BL.109"]
[null,null,null,null,null,null,null,null,null,null,null,null,null,null,null,null,{"$f":"Inledn.!F46","v":327},null,null,null,{"$f":"Inledn.!B46","v":"Reserv UI 23 (Option)"}]
[null,null,null,null,null,{"$f":"Inledn.!F69","v":335},null,null,null,{"$f":"Inledn.!B69","v":"Reserv AO 7 (Option)"},null,null,null,null,null,null,null,null,null,null,{"$f":"CONCATENATE(Inledn.!G46,\" SE BL.108\")","v":" SE BL.108"}]
[null,null,null,null,null,null,null,null,null,"SE BL.109"]
[null,"G",null,null,null,null,null,null,null,null,null,null,null,null,null,null,{"$f":"Inledn.!F47","v":328},null,null,null,{"$f":"Inledn.!B47","v":"Reserv UI 24 (Option)"}]
[null,null,null,null,null,{"$f":"Inledn.!F70","v":336},null,null,null,{"$f":"Inledn.!B70","v":"Reserv AO 8 (Option)"},null,null,null,null,null,null,null,null,null,null,{"$f":"CONCATENATE(Inledn.!G47,\" SE BL.108\")","v":" SE BL.108"}]
[null,null,null,null,null,null,null,null,null,"SE BL.109"]
[]
[null,"H",null,null,null,null,null,null,null,null,null,null,null,null,null,{"$f":"CONCATENATE(Inledn.!B6,\", \",Inledn.!B7)","v":", "},null,null,null,null,"ARBETSNUMMER",null,"RITNINGSNUMMER"]
[null,null,null,null,null,null,null,null,null,null,null,null,null,null,null,null,null,null,null,null,{"$f":"Inledn.!B11","v":"20-101"},null,{"$f":"CONCATENATE(U32,\"00\",X36)","v":"20-10100203"}]
[null,null,null,null,null,null,null,null,null,null,null,null,null,null,null,{"$f":"CONCATENATE(Inledn.!B8,\", \",Inledn.!B9)","v":", "}]
[]
[null,null,null,null,null,null,null,null,null,null,null,null,null,null,null,"YTTRE FÖRBINDNINGSSCHEMA",null,null,null,null,"HANDLÄGGES AV",null,"RITAD AV","BLAD"]
[null,null,null,null,null,null,null,null,null,null,null,null,null,null,null,null,null,null,null,null,{"$f":"Inledn.!B13","v":0},null,"Kjell C",203]
[null,null,null,null,null,null,null,null,null,null,null,null,null,null,null,{"$f":"Inledn.!G5","v":"RELATIONSHANDLING"},null,null,null,null,"Datum",null,"REV.","FORTS.BL"]
[null,null,"NR.","ÄNDRING",{"$f":"'Ducbestyckning del1'!$E$38","v":20220511},"SIGN.","DATUM","010-330 80 00",null,"www.bastec.se",null,null,null,null,null,null,null,null,null,null,{"$f":"Inledn.!B10","v":"00:00:00"},null,{"$f":"Inledn.!B14","v":"SN "},204]

{"sheet":"Blad204","index":22,"n_rows":38,"n_cols":24,"rows_kept":38,"cut":false,"hidden":false,"merged":[[26,1,29,1],[6,1,9,1],[10,1,13,1],[14,1,17,1],[18,1,21,1],[22,1,25,1],[30,22,30,23],[31,20,33,21],[31,22,33,23],[32,15,33,19],[30,1,37,1],[30,11,37,14],[30,15,31,19],[30,20,30,21],[34,15,35,19],[37,7,37,8],[37,9,37,10],[34,20,34,21],[35,20,35,21],[36,15,37,19],[36,20,36,21],[37,20,37,21],[7,21,9,23],[1,12,1,13],[2,1,5,1],[1,2,1,3],[1,4,1,5],[1,6,1,7],[1,8,1,9],[1,10,1,11],[1,14,1,15],[1,16,1,17],[1,18,1,19],[1,20,1,21],[1,22,1,23]]}
[]
[null,null,0,null,1,null,2,null,3,null,4,null,5,null,6,null,7,null,8,null,9,null,10]
[null,"A"]
[]
[null,null,null,null,null,null,null,null,null,null,null,null,null,null,null,null,null,{"$f":"Inledn.!F76","v":901},null,null,null,"BAS2 DUC-KOMM."]
[null,null,null,null,null,{"$f":"Inledn.!F71","v":337},null,null,null,{"$f":"Inledn.!B71","v":"Reserv AO 9 (Option)"}]
[null,"B",null,null,null,null,null,null,null,{"$f":"CONCATENATE(Inledn.!G71,\" SE BL.109\")","v":" (Analog utgång) SE BL.109"}]
[null,null,null,null,null,null,null,null,null,null,null,null,null,null,null,null,null,{"$f":"Inledn.!F77","v":903},null,null,null,{"$f":"Inledn.!B77","v":"Modbus"}]
[null,null,null,null,null,{"$f":"Inledn.!F72","v":338},null,null,null,{"$f":"Inledn.!B72","v":"Reserv AO 10 (Option)"}]
[null,null,null,null,null,null,null,null,null,{"$f":"CONCATENATE(Inledn.!G72,\" SE BL.109\")","v":" (Analog utgång) SE BL.109"}]
[null,"C",null,null,null,null,null,null,null,null,null,null,null,null,null,null,null,{"$f":"Inledn.!F78","v":905},null,null,null,"M-Bus"]
[null,null,null,null,null,{"$f":"Inledn.!F73","v":339},null,null,null,{"$f":"Inledn.!B73","v":"Reserv AO 11 (Option)"}]
[null,null,null,null,null,null,null,null,null,{"$f":"CONCATENATE(Inledn.!G73,\" SE BL.109\")","v":" (Analog utgång) SE BL.109"}]
[null,null,null,null,null,null,null,null,null,null,null,null,null,null,null,null,null,null,"Reservplint"]
[null,"D",null,null,null,{"$f":"Inledn.!F74","v":340},null,null,null,{"$f":"Inledn.!B74","v":"Reserv AO 12 (Option)"}]
[null,null,null,null,null,null,null,null,null,{"$f":"CONCATENATE(Inledn.!G74,\" SE BL.109\")","v":" (Analog utgång) SE BL.109"}]
[]
[]
[null,"E",null,null,null,null,"Reservplint"]
[]
[]
[]
[null,"F"]
[]
[]
[]
[null,"G"]
[null,null,null,null,null,null,null,null,null,null,null,null,null,null,null,null,null,null,{"$f":"Inledn.!F79","v":"TCP/IP"}]
[]
[]
[null,"H",null,null,null,null,null,null,null,null,null,null,null,null,null,{"$f":"CONCATENATE(Inledn.!B6,\", \",Inledn.!B7)","v":", "},null,null,null,null,"ARBETSNUMMER",null,"RITNINGSNUMMER"]
[null,null,null,null,null,null,null,null,null,null,null,null,null,null,null,null,null,null,null,null,{"$f":"Inledn.!B11","v":"20-101"},null,{"$f":"CONCATENATE(U32,\"00\",X36)","v":"20-10100204"}]
[null,null,null,null,null,null,null,null,null,null,null,null,null,null,null,{"$f":"CONCATENATE(Inledn.!B8,\", \",Inledn.!B9)","v":", "}]
[]
[null,null,null,null,null,null,null,null,null,null,null,null,null,null,null,"YTTRE FÖRBINDNINGSSCHEMA",null,null,null,null,"HANDLÄGGES AV",null,"RITAD AV","BLAD"]
[null,null,null,null,null,null,null,null,null,null,null,null,null,null,null,null,null,null,null,null,{"$f":"Inledn.!B13","v":0},null,"Kjell C",204]
[null,null,null,null,null,null,null,null,null,null,null,null,null,null,null,{"$f":"Inledn.!G5","v":"RELATIONSHANDLING"},null,null,null,null,"Datum",null,"REV.","FORTS.BL"]
[null,null,"NR.","ÄNDRING",{"$f":"'Ducbestyckning del1'!$E$38","v":20220511},"SIGN.","DATUM","010-330 80 00",null,"www.bastec.se",null,null,null,null,null,null,null,null,null,null,{"$f":"Inledn.!B10","v":"00:00:00"},null,{"$f":"Inledn.!B14","v":"SN "},"-"]